Cogmind - Beta 10.1 @@@ ROGUE MODE // 2020.10.22 @ 04:23:30 Player: SterilizationExperimentation Result: Heading to fleet! Performance ------------- Evolutions (9) 4500 Regions Visited (34) 6800 Robots Destroyed (749) 3745 Value Destroyed (37640) 37640 Prototype IDs (122) 2440 Alien Tech Used (7) 1400 Bonus (68885) 68885 TOTAL SCORE: 125410 Bonus ------- High Alert Combat Kills 9253 Follower Combat Kills 4170 Network Hubs Disabled 200 Met Imprinter 300 Met Zhirov 300 Met Warlord at Base 500 MAIN.C Attacked Warlord 500 Built Enhanced Grunts 300 Found Hidden Lab 3000 Used Core Reset Matrix 3000 Met R17 at Research 2000 Met Warlord at Research 2000 Invited to Help at Command 2000 Recovered Sigix Corpse 1000 Destroyed MAIN.C Guards 500 Met MAIN.C 5000 Destroyed MAIN.C Shell 5000 Destroyed MAIN.C 10000 Met Architect 300 Destroyed A8 300 Destroyed A6 400 Destroyed A5 500 Destroyed A4 700 Destroyed A3 800 Destroyed A2 1000 Destroyed Architect 15000 Win 3000 Friendly Fire -2138 Cogmind --------- Core Integrity 386/1600 Matter 300/300 Energy 472/490 System Corruption 5% Temperature Cool (10) Movement Treading (183) Ox1 Location To Fleet Rendezvous Parts ------- > --- POWER (2) -------- Reinforced Quantum Reactor Zero-point Reactor > --- PROPULSION (5) --- Enhanced Armored Medium Treads Armored Heavy Treads Centrium Heavy Treads > --- UTILITY (15) ----- Desublimator Experimental Power Amplifier 2N-1CE's Frost Array High-capacity Storage Unit High-capacity Storage Unit High-capacity Storage Unit High-capacity Storage Unit Experimental Target Analyzer Advanced Armor Integrity Analyzer Experimental Weapon Cycler Advanced Phase Shifter Heavy Regenerative Plating Advanced Focal Shield Experimental Force Field > --- WEAPON (4) ------- Helical Railgun Hypervelocity Multirail Compact Linear Accelerator Graviton Cannon > --- INVENTORY (36) --- Reinforced Quantum Reactor Advanced Heavy Siege Treads Experimental Biometal Medium Treads Experimental Heat Sink Experimental Coolant Injector Experimental Energy Well (1000) Experimental Energy Well (1000) Experimental Matter Compressor (312) Experimental Matter Compressor (219) Spectral Analyzer Precision Matter Filter Advanced Particle Accelerator Experimental Weapon Cycler Improved Utility Shielding Improved Weapon Shielding Heavy Regenerative Plating Long-range Tractor Beam Mobile Refinery Mk. CCLXVII Bomb Drone Bay (16/16) Advanced Variable Charge Gun Compact HERF Cannon Enhanced Nova Cannon Enhanced Nova Cannon Cooled Nova Cannon Helical Railgun Helical Railgun Linear Accelerator Sigix Corpse Peak State ------------ > --- POWER ------------ Reinforced Quantum Reactor Zero-point Reactor > --- PROPULSION ------- Enhanced Armored Medium Treads Armored Heavy Treads Centrium Heavy Treads > --- UTILITY ---------- Desublimator Experimental Power Amplifier 2N-1CE's Frost Array High-capacity Storage Unit High-capacity Storage Unit High-capacity Storage Unit High-capacity Storage Unit Experimental Target Analyzer Advanced Armor Integrity Analyzer Experimental Weapon Cycler Advanced Phase Shifter Heavy Regenerative Plating Advanced Focal Shield Experimental Force Field > --- WEAPON ----------- Helical Railgun Hypervelocity Multirail Compact Linear Accelerator Graviton Cannon > --- INVENTORY -------- Reinforced Quantum Reactor Advanced Heavy Siege Treads Experimental Biometal Medium Treads Experimental Heat Sink Experimental Coolant Injector Experimental Energy Well Experimental Energy Well Experimental Matter Compressor Experimental Matter Compressor Spectral Analyzer Precision Matter Filter Advanced Particle Accelerator Experimental Weapon Cycler Improved Utility Shielding Improved Weapon Shielding Heavy Regenerative Plating Long-range Tractor Beam Mobile Refinery Mk. CCLXVII Bomb Drone Bay High-powered Transdimensional Reconstructor Advanced Variable Charge Gun Compact HERF Cannon Enhanced Nova Cannon Enhanced Nova Cannon Cooled Nova Cannon Helical Railgun Helical Railgun Linear Accelerator Sigix Corpse [Rating: 233] Favorites ----------- Power Quantum Reactor Engine Cooled Ion Engine Power Core Micro Fission Core Reactor Quantum Reactor Propulsion Centrium Heavy Treads Treads Centrium Heavy Treads Leg Carbon-fiber Leg Wheel Compact Wheel Utility High-capacity Storage Unit Device Advanced Weapon Cycler Storage High-capacity Storage Unit Processor Advanced Armor Integrity Analyzer Hackware Advanced Hacking Suite Protection Heavy Regenerative Plating Weapon Improved KE Penetrator Energy Gun Phase Gun Energy Cannon Cooled Nova Cannon Ballistic Gun Improved KE Penetrator Ballistic Cannon Light Cannon Launcher Compact Tesla Bomb Launcher Special Weapon Mining Laser Impact Weapon Hammer Slashing Weapon Mining Claw Piercing Weapon CR-A16's Behemoth Slayer Special Melee Weapon Advanced Datajack Build | -11 -10 -10 -9 -9 -8 -8 -7 -7 -7 -7 -6 -6 -6 -6 -6 -6 -5 -5 -5 -5 -4 -4 -4 -4 -4 -3 -3 -3 -3 -2 -2 -1 -1 -1 ------- Run | Scr Mat Min Mat Min Mat Sto Fac Low Low Zio Pro Fac Ext Cet Arc Hub Fac Upp Upp Zhi Pro Fac Upp Upp War Pro Res Arm Lab Res Tes Acc Com Ac0 Slots Evolved 18 | . . . 2 . 2 . 2 . . . . 2 . . . . 2 . . . . 2 . . . . 2 . . 2 . 2 . . Power 1 | . . . . . . . . . . . . . . . . . 1 . . . . . . . . . . . . . . . . . Propulsion 2 | . . . . . . . 1 . . . . 1 . . . . . . . . . . . . . . . . . . . . . . Utility 13 | . . . . . 2 . 1 . . . . 1 . . . . 1 . . . . 2 . . . . 2 . . 2 . 2 . . Weapon 2 | . . . 2 . . . . . . . . . . . . . . . . . . . . . . . . . . . . . . . Parts Attached 1012 | 7 26 24 53 6 33 40 20 3 2 8 4 70 15 13 7 13 13 9 5 8 5 29 2 3 10 18 66 33 13 44 52 36 172 150 Power 60 | 1 2 . 5 . 2 2 . 1 . . . 4 . 1 . . 1 1 . 2 . 1 . . 1 2 5 2 . 6 1 1 10 9 Engine 17 | 1 2 . 5 . 2 2 . 1 . . . 3 . . . . . . . . . . . . . . 1 . . . . . . . Core 7 | . . . . . . . . . . . . 1 . . . . 1 1 . 1 . 1 . . . 2 . . . . . . . . Reactor 36 | . . . . . . . . . . . . . . 1 . . . . . 1 . . . . 1 . 4 2 . 6 1 1 10 9 Propulsion 108 | 2 4 10 13 2 7 8 3 . . 2 . 4 9 3 . 1 2 . . . 1 2 . 1 . 2 2 2 1 2 2 . 15 8 Treads 91 | 2 3 5 13 2 7 8 3 . . 2 . 1 4 3 . . 2 . . . 1 2 . 1 . 2 2 2 1 2 2 . 13 8 Leg 7 | . 1 . . . . . . . . . . 1 5 . . . . . . . . . . . . . . . . . . . . . Wheel 10 | . . 5 . . . . . . . . . 2 . . . 1 . . . . . . . . . . . . . . . . 2 . Hover . | . . . . . . . . . . . . . . . . . . . . . . . . . . . . . . . . . . . Flight . | . . . . . . . . . . . . . . . . . . . . . . . . . . . . . . . . . . . Utility 485 | 2 6 4 8 . 11 6 8 2 1 3 . 38 4 4 5 10 6 3 1 1 2 21 2 2 6 10 29 16 6 26 25 24 106 87 Device 296 | 1 . 1 . . 4 1 1 1 . 1 . 19 1 2 2 3 5 1 1 . 2 15 2 2 4 5 17 7 5 15 19 17 74 68 Storage 46 | . 1 2 . . 2 2 2 . . . . 2 . . 2 . . . . . . . . . . 2 4 . . 5 1 . 12 9 Processor 18 | 1 . . . . . . 1 . . 1 . 2 1 . . . . . . . . . . . . . . 1 . 1 1 1 3 5 Hackware 15 | . . . 2 . . 1 . . . . . . . . . 2 1 . . . . 1 . . . . . 2 . . 1 4 1 . Protection 110 | . 5 1 6 . 5 2 4 1 1 1 . 15 2 2 1 5 . 2 . 1 . 5 . . 2 3 8 6 1 5 3 2 16 5 Artifact . | . . . . . . . . . . . . . . . . . . . . . . . . . . . . . . . . . . . Weapon 359 | 2 14 10 27 4 13 24 9 . 1 3 4 24 2 5 2 2 4 5 4 5 2 5 . . 3 4 30 13 6 10 24 11 41 46 Energy Gun 19 | . 1 . 1 . 4 . . . . . . 2 . . . . 1 . . . . . . . 1 . . . 1 . 1 . 4 3 Energy Cannon 28 | . . . . . . . . . . . . 2 . . . . . . . . . 1 . . . . 8 2 . . . 3 6 6 Ballistic Gun 184 | 2 8 . 12 4 5 13 7 . 1 2 2 11 2 4 2 2 2 2 2 5 1 3 . . 1 3 17 7 4 9 12 4 6 29 Ballistic Cannon 36 | . 2 3 8 . 3 5 . . . . . . . . . . . . . . . . . . . . . . . . . . 8 7 Launcher 34 | . . 4 6 . 1 2 1 . . . 2 3 . . . . . . 1 . . . . . . . . 1 . . . 2 11 . Special Weapon 8 | . 2 3 . . . . 1 . . . . 1 . . . . . 1 . . . . . . . . . . . . . . . . Impact Weapon 1 | . 1 . . . . . . . . . . . . . . . . . . . . . . . . . . . . . . . . . Slashing Weapon 5 | . . . . . . 4 . . . . . . . . . . . 1 . . . . . . . . . . . . . . . . Piercing Weapon 43 | . . . . . . . . . . 1 . 5 . 1 . . . 1 1 . 1 1 . . 1 1 5 3 1 1 11 2 6 1 Special Melee Weapon 1 | . . . . . . . . . . . . . . . . . 1 . . . . . . . . . . . . . . . . . Unidentified Prototypes 58 | . . 1 . . . 2 . . . 1 . . . 3 1 1 . . . 2 . . . . 5 . 1 1 3 . 1 1 13 22 Parts Lost 66 | . 4 . 3 1 2 2 . . 1 . 1 6 1 . . . . . 1 . 1 . . 1 1 2 1 1 . . . 7 17 13 Power 7 | . 1 . . . 1 . . . . . . . . . . . . . . . . . . . . 1 . . . . . . 2 2 Propulsion 12 | . 1 . . 1 . . . . . . . 2 1 . . . . . . . 1 . . . 1 . . . . . . 1 3 1 Utility 23 | . . . . . . . . . . . . . . . . . . . . . . . . 1 . . 1 1 . . . 4 9 7 Weapon 24 | . 2 . 3 . 1 2 . . 1 . 1 4 . . . . . . 1 . . . . . . 1 . . . . . 2 3 3 Highest Loss Streak 13 | . 2 . 1 1 1 1 . . 1 . 1 2 1 . . . . . 1 . 1 . . 1 1 1 1 1 . . . 7 13 4 Average Slot Usage (%) 90 | . 99 99 99 99 99 99 99 100 99 100 99 99 99 89 85 86 87 86 80 61 81 85 89 86 79 80 84 88 72 87 90 90 82 85 Engine 3 | . 13 14 11 11 8 9 7 7 7 7 7 3 6 1 . . . . . . . . . . . . . . . . . . . . Reactor 4 | . . . . . . . . . . . . . . 4 6 6 5 4 . 2 5 5 5 5 4 2 8 9 9 7 8 8 7 6 Treads 14 | . 27 23 21 21 18 17 23 23 23 23 23 21 18 16 13 8 6 11 11 11 10 11 15 12 9 10 9 9 9 8 7 7 8 9 Device 9 | . 2 . . . 10 . 4 7 7 1 . 5 8 5 5 . 2 5 5 5 5 12 15 17 18 10 9 8 13 17 18 15 16 18 Storage 22 | . 13 16 11 11 13 22 23 23 23 23 23 20 20 20 25 26 23 23 23 23 23 21 21 21 21 21 27 23 23 23 21 19 28 20 Processor 2 | . . . . . . . . . . 5 7 6 2 6 . . . . . . . . . . . . . 4 4 5 8 10 2 8 Hackware 1 | . . . . . . 4 . . . . . . . . . . 2 . . . . 1 . . . . . 4 7 1 . 11 1 . Protection 7 | . 11 11 10 11 11 9 9 7 7 7 7 6 7 6 6 12 11 9 4 2 5 5 5 2 2 9 8 7 . 3 5 2 5 4 Energy Gun 1 | . 1 . 1 . 4 . . . . . . 1 . . . . . 5 4 . . . . . . . . . . . . . 2 . Ballistic Gun 16 | . 18 . 30 44 20 30 29 30 29 29 29 23 26 25 26 26 22 16 15 . 22 20 21 21 18 20 18 18 2 17 16 12 3 9 Ballistic Cannon 2 | . 8 14 11 . 10 4 . . . . . . . . . . . . . . . . . . . . . . . . . . . 4 Launcher 1 | . . 12 . . . . . . . . . . . . . . . . . . . . . . . . . . . . . . 2 . Naked Turns . | . . . . . . . . . . . . . . . . . . . . . . . . . . . . . . . . . . . Heaviest Build 356 | 10 30 42 41 35 77 91 101 100 101 101 96 159 151 151 197 197 204 201 190 194 194 215 205 203 239 217 257 239 243 258 248 248 356 346 Greatest Support 175 | 40 40 40 46 40 46 46 62 62 62 62 60 80 83 160 160 160 160 160 160 160 160 150 128 150 150 150 150 145 135 150 160 160 160 175 Greatest Overweight (x) 112 | 1 1 1 1 1 1 3 1 1 1 1 1 6 5 1 58 7 7 1 1 1 2 2 1 1 2 1 1 3 66 1 1 2 112 2 Average Overweight (x) 1 | . . . . . . 1 1 1 1 1 1 1 1 . 15 4 5 1 . . 1 1 1 1 1 1 1 1 8 1 1 1 3 1 Largest Inventory Capacity 68 | 4 10 16 16 10 16 24 24 24 24 24 24 28 28 28 36 36 36 36 36 36 36 36 36 36 36 44 44 44 44 44 44 44 68 60 Average Capacity 33 | 4 9 11 10 10 13 18 24 24 24 24 24 26 28 28 35 36 36 36 36 36 36 36 36 36 36 36 44 44 44 44 44 43 50 44 Most Carried 61 | 4 10 12 11 10 16 23 24 24 24 24 24 28 28 28 34 36 36 36 36 36 35 36 36 36 36 38 44 44 44 44 44 42 61 60 Average Carried 30 | 1 7 9 9 9 12 17 23 23 23 23 23 25 27 27 32 34 33 35 35 34 34 35 36 35 34 34 42 42 43 43 43 37 40 40 Final Capacity 60 | 4 10 16 10 10 16 24 24 24 24 24 24 28 28 28 36 36 36 36 36 36 36 36 36 36 36 44 44 44 44 44 44 36 60 44 Final Carried 58 | 4 6 12 10 10 16 23 24 24 24 24 24 28 28 28 34 35 34 36 35 32 35 36 36 35 36 38 42 44 42 44 43 34 58 38 Class Distribution -------------------- 31% | Hauler-Tank 17% | Hauler-Mutant 10% | Hauler-Gunner 9% | Scavenger-Tank 9% | Tank 8% | Mutant 7% | Scavenger-Mutant Dominant Class ---------------- Mutant | -10/Materials Mutant | -10/Mines Tank | -9/Materials Scavenger-Tank | -9/Mines Tank | -8/Materials Hauler-Tank | -8/Storage Hauler-Tank | -7/Factory Hauler-Tank | -7/Lower Caves Hauler-Tank | -7/Lower Caves Hauler-Tank | -7/Zion Hauler-Tank | -6/Proximity Caves Hauler-Tank | -6/Factory Commander-Tank | -6/Extension Scavenger-Gunner | -6/Cetus Scavenger-Tank | -6/Archives Hauler-Tank | -6/Hub_04(d) Scavenger-Tank | -5/Factory Scavenger-Tank | -5/Upper Caves Hauler-Tank | -5/Upper Caves Hauler-Mutant | -5/Zhirov Hauler-Tank | -4/Proximity Caves Hauler-Tank | -4/Factory Hauler-Tank | -4/Upper Caves Hauler-Tank | -4/Upper Caves Hauler-Tank | -4/Warlord Hauler-Tank | -3/Proximity Caves Hauler-Tank | -3/Research Hauler-Tank | -3/Armory Hauler-Mutant | -3/Lab Hauler-Tank | -2/Research Hauler-Gunner | -2/Testing Hacker-Gunner | -1/Access Hauler-Mutant | -1/Command Hauler-Gunner | -1/Access_0 Resources | -11 -10 -10 -9 -9 -8 -8 -7 -7 -7 -7 -6 -6 -6 -6 -6 -6 -5 -5 -5 -5 -4 -4 -4 -4 -4 -3 -3 -3 -3 -2 -2 -1 -1 -1 ----------- Run | Scr Mat Min Mat Min Mat Sto Fac Low Low Zio Pro Fac Ext Cet Arc Hub Fac Upp Upp Zhi Pro Fac Upp Upp War Pro Res Arm Lab Res Tes Acc Com Ac0 Matter Collected 34677 | 318 760 384 2258 244 913 1524 841 338 272 112 445 1825 785 513 262 222 . 415 411 85 423 781 70 310 . 474 2029 943 . 1027 1838 1650 6138 6067 Remotely 5911 | . . . . . . 260 . 86 . . . 597 . . . . . . . . 99 153 . . . . 454 567 . . 636 819 1247 993 Salvage Created 39155 | 156 937 342 3175 382 1615 1929 945 205 287 . 508 1843 573 644 358 226 55 351 924 95 589 973 30 523 . 442 1969 985 . 856 3669 3679 6997 2893 Parts 2043 | 16 56 31 212 27 96 105 54 17 19 . 32 100 31 41 20 9 5 11 35 2 29 49 . 23 . 35 73 57 . 36 171 151 347 153 Haulers Intercepted 20 | . 2 . 5 . 4 5 . . . . . . . . . . . . . . . . . . . . 1 . . 1 . 2 . . Recyclers Shooed 16 | . . . 1 . . 3 . . . . . 6 1 . . . 1 . . . . 1 . . . . . . . . . 3 . . Parts Field Recycled 12 | . . . . . . . . . . . . 6 . . 4 . . . . . . . . . . . . . 2 . . . . . Retrieved Matter 373 | . . . . . . . . . . . . 111 . . 52 . . . . . . . . . . . . . 210 . . . . . Parts Self-Destructed 282 | . . . . . . . . 17 25 . 42 . . . . . . 12 9 2 27 . 6 23 58 61 . . . . . . . . Prevented 12 | . . . . . . . . 1 . . . . . . . . . . 4 . . . . . 6 1 . . . . . . . . Kills | -11 -10 -10 -9 -9 -8 -8 -7 -7 -7 -7 -6 -6 -6 -6 -6 -6 -5 -5 -5 -5 -4 -4 -4 -4 -4 -3 -3 -3 -3 -2 -2 -1 -1 -1 ------- Run | Scr Mat Min Mat Min Mat Sto Fac Low Low Zio Pro Fac Ext Cet Arc Hub Fac Upp Upp Zhi Pro Fac Upp Upp War Pro Res Arm Lab Res Tes Acc Com Ac0 Combat Hostiles Destroyed 612 | . 24 4 78 13 36 44 17 4 8 . 11 25 5 6 2 3 1 3 14 . 14 16 1 11 . 7 28 16 . 9 46 36 91 39 Melee 1 | . . . . . . . . . . . . 1 . . . . . . . . . . . . . . . . . . . . . . Guns 441 | . 24 . 42 13 31 29 16 4 8 . 5 19 5 6 2 3 1 3 13 . 13 11 1 11 . 6 27 16 . 9 46 28 18 31 Cannons 63 | . . 4 20 . 5 8 . . . . . 1 . . . . . . . . . . . . . . . . . . . . 18 7 AOE 84 | . . . 16 . . 7 1 . . . 6 4 . . . . . . 1 . . 5 . . . . . . . . . 3 41 . Classes Destroyed 25 | 2 6 1 5 . 1 . 1 2 . . . . . . . . . . 1 . . . . . . . 3 . . 1 1 . 1 . Worker 27 | . 2 4 7 . . 2 . . . . . 4 1 . . . . . . . . 1 . . . . . . . . . 5 1 . Builder 21 | . . 3 3 . 3 . . . . . . 2 . . . 1 . . . . . . . . . . . . . . 6 3 . . Tunneler 9 | 5 . 1 2 . . . . . . . . . . . . . . . . . . . . . . . . . . 1 . . . . Hauler 20 | . 2 . 5 . 4 5 . . . . . . . . . . . . . . . . . . . . 1 . . 1 . 2 . . Recycler 21 | 1 . 3 2 . 1 4 . . . . . 2 1 . . . . . . . . 1 . . . . 1 . . . 1 4 . . Minesweeper 1 | . . . . . . . . 1 . . . . . . . . . . . . . . . . . . . . . . . . . . Mechanic 3 | . . . 3 . . . . . . . . . . . . . . . . . . . . . . . . . . . . . . . Operator 14 | . 1 . 3 . . 4 . . . . . . . . 6 . . . . . . . . . . . . . . . . . . . Watcher 13 | . 2 . 5 . . . . . . . . . . 1 . . . . . . . . . . . . . 1 . . 1 3 . . Swarmer 126 | . 6 3 12 7 8 15 . 3 7 . 4 5 . 1 . . . . . . 9 5 1 5 . 2 6 4 . 1 4 6 12 . Saboteur 1 | . . . . . . . . . . . . . . . . . . . . . . . . . . . . . . . 1 . . . Grunt 207 | . 18 1 50 5 18 20 7 . . . 6 8 2 . . 2 . . 7 . 3 2 . 3 . 2 7 4 . 2 17 10 13 . Brawler 20 | . . . 2 1 1 2 . . . . . . . . . . . . . . 1 . . . . . 2 . . . 5 1 5 . Duelist 8 | . . . 2 . . 1 1 . . . . 1 . . . . . . . . . . . . . . . . . . 1 1 1 . Protector 4 | . . . 2 . . . . . . . . . . . . . . . . . . . . . . . . . . . . 1 1 . Sentry 58 | . . . 10 . 8 6 4 . . . 1 5 2 . 2 1 . 1 . . . 4 . 1 . . 3 3 . 2 2 1 2 . Demolisher 4 | . . . . . . . . . . . . . . . . . . . . . . . . . . . 3 . . 1 . . . . Specialist 4 | . . . . . . . . . . . . . . . . . . . . . . . . . . . . . . 1 2 . 1 . Hunter 26 | . . . . . 1 . 1 . . . . 2 . . . . . . . . . 1 . . . . . . . . 2 6 13 . Programmer 76 | . . . . . . . 4 . . . . 4 1 . . . 1 2 . . . 4 . 2 . 2 . 5 . . 12 10 29 . Behemoth 7 | . . . . . . . . 1 1 . . . . . . . . . . . 1 . . . . 1 1 . . . . . 2 . Cetus Guard 5 | . . . . . . . . . . . . . . 5 . . . . . . . . . . . . . . . . . . . . M Guard 2 | . . . . . . . . . . . . . . . . . . . . . . . . . . . . . . . . . 2 . Enhanced Grunt 22 | . . . . . . . . . . . . . . . . . . . . . . . . . . . . . . . . . . 22 Enhanced Sentry 2 | . . . . . . . . . . . . . . . . . . . . . . . . . . . . . . . . . . 2 Enhanced Hunter 8 | . . . . . . . . . . . . . . . . . . . . . . . . . . . . . . . . . . 8 Combat Programmer 2 | . . . . . . . . . . . . . . . . . . . . . . . . . . . . . . . . . 2 . Striker 6 | . . . . . . . . . . . . . . . . . . . . . . . . . . . 5 . . 1 . . . . Executioner 2 | . . . . . . . . . . . . . . . . . . . . . . . . . . . 1 . . 1 . . . . Packrat 1 | . . . . . . . . . . . . . . . . . . 1 . . . . . . . . . . . . . . . . Thug 9 | . . . . . . . . . . . . . 1 3 . . . . 5 . . . . . . . . . . . . . . . Savage 1 | . . . . . . . . . . . . . 1 . . . . . . . . . . . . . . . . . . . . . Butcher 1 | . . . . . . . . . . . . . . . . . . . 1 . . . . . . . . . . . . . . . Guerrilla 3 | . . . . . . . . . . . . . . 1 . . . . . . . . . . . . . . . . . . 2 . Wizard 1 | . . . . . . . . . . . . . . . . . . . . . . . . . . . . . . . . . 1 . Fireman 1 | . . . . . . . . . . . . . . . . . . . . . . . . . . . . . . . . . 1 . Mutant 3 | . . . . . . . . . . . . . . . . . . . 1 . . . . . . . . . . . . . 2 . Commander 1 | . . . . . . . . . . . . . . . . . . 1 . . . . . . . . . . . . . . . . Best Kill Streak 32 | 3 5 3 13 4 7 11 4 3 4 . 3 10 2 4 3 1 1 2 7 . 6 5 1 5 . 2 6 6 . 4 8 14 32 3 Combat Bots Only 32 | . 5 3 9 4 7 10 4 3 4 . 3 7 2 3 2 1 1 2 7 . 6 5 1 5 . 2 6 6 . 4 7 11 32 3 Max Kills in Single Turn 6 | 1 1 2 4 1 2 5 2 1 2 . 3 6 2 2 1 1 1 1 2 . 2 5 1 3 . 2 2 2 . 2 3 3 6 2 Gunslinging 2 | . . . 2 . 1 1 1 . . . . . . . . . . . . . 1 . . 2 . . . 1 . 1 1 1 . . Exploded 6 | . . . 3 . . 4 1 . . . 3 4 . . . . . . 1 . . 5 . . . . . . . . . 1 6 . Melee 1 | . . . . . . . . . . . . 1 . . . . . . . . . . . . . . . . . . . . . . Uniques/NPCs Destroyed 9 | . . . . . . . . . . . . . . . . . . . . . . . . . . . . . . . . . 2 7 MAIN.C Shell (-1/Command) MAIN.C (-1/Command) A8 (-1/Access_0) A6 (-1/Access_0) A5 (-1/Access_0) A4 (-1/Access_0) A2 (-1/Access_0) Architect (-1/Access_0) A3 (-1/Access_0) Combat | -11 -10 -10 -9 -9 -8 -8 -7 -7 -7 -7 -6 -6 -6 -6 -6 -6 -5 -5 -5 -5 -4 -4 -4 -4 -4 -3 -3 -3 -3 -2 -2 -1 -1 -1 -------- Run | Scr Mat Min Mat Min Mat Sto Fac Low Low Zio Pro Fac Ext Cet Arc Hub Fac Upp Upp Zhi Pro Fac Upp Upp War Pro Res Arm Lab Res Tes Acc Com Ac0 Damage Taken 45148 | . 913 72 2063 309 997 1504 842 417 368 22 456 1741 252 410 89 278 81 322 1093 . 932 874 73 851 1621 433 1826 1302 . 339 2109 2261 10609 9689 Core 3127 | . 96 . 262 9 151 118 72 12 60 . 90 102 22 34 23 13 . . 38 . 61 51 . 22 147 19 75 5 . 33 136 139 681 656 Absorbed by Shields 19762 | . . . . . 200 . 162 155 136 . . 278 134 57 . . . . . . . 108 77 409 125 114 1521 . . 275 1551 851 4297 9312 Reduced by Siege Mode 2100 | . . . . . . . . . . . . . . . . . . 10 78 . 13 33 . 52 . . 143 99 . 11 148 65 875 573 Core Remaining (%) 68 | 100 . 61 . 32 . 51 . . . . 66 . . . . 77 . . . . 90 . . . . 79 . . 87 . 88 . . 24 Volleys Fired 1745 | 8 95 44 172 24 75 89 43 13 13 1 19 67 18 21 15 6 3 12 29 . 24 35 2 20 3 10 93 38 . 30 70 72 263 318 Largest 4 | 2 2 2 4 4 4 4 4 4 4 4 4 4 4 4 4 4 4 4 4 . 4 4 4 4 4 4 4 4 . 4 4 4 4 4 Hottest 252 | 40 100 135 140 83 203 155 114 114 117 112 112 252 104 126 136 136 136 156 156 . 121 126 126 126 126 126 126 110 . 149 149 164 222 231 Shots Fired 5388 | 16 178 66 649 95 296 332 169 52 51 4 63 209 68 84 61 24 12 42 110 . 83 137 8 80 12 41 308 142 1 120 280 210 332 1053 Gun 4462 | 16 173 . 472 95 256 267 166 52 51 4 59 204 68 84 61 24 12 42 108 . 83 136 8 80 12 41 290 139 1 120 280 184 79 795 Cannon 774 | . . 42 157 . 39 62 . . . . . 3 . . . . . . . . . 1 . . . . 18 3 . . . 20 171 258 Launcher 125 | . . 4 20 . 1 3 2 . . . 4 1 . . . . . . 2 . . . . . . . . . . . . 6 82 . Special 27 | . 5 20 . . . . 1 . . . . 1 . . . . . . . . . . . . . . . . . . . . . . Kinetic 4973 | 16 164 42 623 95 257 329 166 52 51 4 59 199 68 84 61 24 12 31 81 . 83 136 8 80 12 41 290 139 1 120 280 184 154 1027 Thermal 238 | . 14 20 6 . 38 . . . . . . 5 . . . . . . . . . 1 . . . . 18 3 . . . 20 91 22 Explosive 35 | . . 4 20 . 1 3 . . . . 4 1 . . . . . . 2 . . . . . . . . . . . . . . . Electromagnetic 140 | . . . . . . . 2 . . . . 3 . . . . . 11 27 . . . . . . . . . . . . 6 87 4 Robot Hit Streak 50 | 8 14 6 16 9 16 13 14 11 8 . 10 17 22 21 11 12 5 32 34 . 17 17 14 37 4 13 35 31 . 19 41 37 23 50 Robot Miss Streak 13 | 1 3 3 4 4 13 6 4 8 7 . 5 8 4 6 2 1 1 1 3 . 3 3 4 2 1 3 4 2 . 2 1 4 3 9 Penetration Max 3 | . . . . . . . . . 1 . 1 2 3 1 1 1 . 1 1 . . 1 . 1 1 . 1 1 . 2 2 3 1 1 Secondary Targets 97 | . 2 . 8 3 3 6 1 2 2 . 1 3 2 4 1 . . . 4 . 4 3 . 6 . 1 7 6 . 2 18 4 . 4 Max Gunslinging Chain 3 | . 1 . 3 1 1 1 1 1 1 . 1 1 1 1 1 . . . 1 . 1 1 . 2 . 1 1 1 . 1 2 1 . 1 Shots Hit Robots 3846 | 9 119 24 345 55 210 239 125 39 44 . 50 145 57 61 41 12 9 34 92 2 51 95 2 67 9 26 219 102 . 55 231 138 246 893 Core Hits 2351 | 5 55 24 171 22 119 128 66 20 33 . 43 117 44 89 20 6 2 13 44 . 26 54 1 23 3 11 80 40 . 26 140 135 228 563 Critical Hits 476 | . . . 5 . 1 1 1 2 6 . 2 29 7 7 5 4 3 4 4 . 3 6 . 8 1 3 23 16 . 9 20 89 55 162 Critical Kills 134 | . . . 1 . . 1 . . . . . 12 4 1 3 3 1 1 2 . 3 4 . 3 . 3 7 6 . 4 10 25 19 21 Critical Parts Destroyed 222 | . . . 4 . 1 . 1 2 5 . 2 17 3 6 2 1 2 3 2 . . 2 . 5 1 . 12 8 . 3 6 52 24 58 Melee Attacks 99 | . 3 . . . . 9 . . . . . 8 . 4 . . 1 1 . 2 2 1 . . 4 1 9 8 4 1 17 8 16 . Impact 3 | . 3 . . . . . . . . . . . . . . . . . . . . . . . . . . . . . . . . . Slashing 9 | . . . . . . 9 . . . . . . . . . . . . . . . . . . . . . . . . . . . . Piercing 86 | . . . . . . . . . . . . 8 . 4 . . . 1 . 2 2 1 . . 4 1 9 8 4 1 17 8 16 . Sneak Attacks 2 | . . . . . . . . . . . . . . . . . 1 . . . . . . . . . 1 . . . . . . . Combat Hostiles 1 | . . . . . . . . . . . . . . . . . . . . . . . . . . . 1 . . . . . . . Follow-up Attacks . | . . . . . . . . . . . . . . . . . . . . . . . . . . . . . . . . . . . Damage Inflicted 106818 | 139 1463 705 6330 571 2628 4034 2149 544 641 22 1477 3876 1103 1730 1162 556 230 758 2074 105 665 3164 52 1517 352 604 5378 2718 . 1868 10214 4657 19740 23592 Guns 67728 | 137 1324 . 2806 545 2198 2222 1960 518 641 . 675 2098 1103 1684 1142 293 230 758 1996 . 638 2241 52 1517 237 584 5335 2718 . 1815 9100 3443 1109 16609 Cannons 19181 | . . 501 1377 . 338 923 . . . . . 75 . . . . . . . . . . . . . . . . . . . . 9154 6813 Explosions 16244 | . 93 49 1956 . . 751 188 . . . 802 1518 . . . 263 . . 78 . . 768 . . . . . . . . . 997 8781 . Melee 1425 | . . . . . . . . . . . . . . . . . . . . 105 . . . . . . . . . . 1005 . 315 . Ramming 2216 | 2 46 131 191 26 92 138 1 26 . 22 . 185 . 46 20 . . . . . 27 155 . . 115 20 43 . . 53 109 217 381 170 Kinetic 81950 | 137 1213 501 4132 545 1896 3145 1960 518 641 . 675 2001 1103 1684 1142 293 230 696 1620 . 638 2241 52 1517 237 584 5335 2718 . 1815 9100 3443 7461 22677 Thermal 9915 | . 204 24 51 . 640 . . . . . . 1320 . . . . . . 78 . . 768 . . . . . . . . . 23 6199 608 Explosive 3853 | . . 49 1956 . . 751 . . . . 802 295 . . . . . . . . . . . . . . . . . . . . . . Electromagnetic 7459 | . . . . . . . 188 . . . . 75 . . . 263 . 62 376 . . . . . . . . . . . . 974 5384 137 Impact . | . . . . . . . . . . . . . . . . . . . . . . . . . . . . . . . . . . . Slashing . | . . . . . . . . . . . . . . . . . . . . . . . . . . . . . . . . . . . Piercing 1425 | . . . . . . . . . . . . . . . . . . . . 105 . . . . . . . . . . 1005 . 315 . Highest Corruption 47 | . . . 3 3 . . 4 4 4 4 . 7 7 7 7 1 . 5 5 5 5 3 1 1 3 5 . 11 11 . 5 2 47 5 Average Corruption 6 | . . . 2 3 . . 2 4 4 4 . 2 7 7 3 1 . 4 5 5 5 1 1 1 1 3 . 7 5 . 2 1 12 4 Corruption Purged 119 | . . . . . . . . . . . . . . . 7 . . . . . . 3 1 1 . 1 . . 11 . 6 1 88 . Effects 714 | . . . 46 26 . . 24 14 17 1 . 15 36 16 21 . . 14 29 4 21 3 . . 1 17 . 20 23 . 18 4 270 74 Message Errors 143 | . . . 12 3 . . 4 1 6 . . 7 10 1 3 . . 3 8 2 3 2 . . 1 6 . 5 3 . 1 2 46 14 Matter Fused 131 | . . . 11 10 . . 4 3 4 . . 1 7 . 1 . . 3 5 1 1 . . . . 2 . 2 7 . 1 . 56 12 Heat Flow Errors 77 | . . . 4 2 . . 3 3 2 1 . 1 4 . 3 . . . 3 . 1 . . . . 1 . 1 3 . 2 . 33 10 Energy Discharges 89 | . . . 7 7 . . . 2 1 . . 3 4 2 4 . . 1 3 1 6 1 . . . 2 . 1 3 . 4 . 31 6 Parts Rejected 8 | . . . . . . . . . . . . . . 1 . . . . . . . . . . . . . . . . . . 7 . Data Loss (minor) 86 | . . . 3 2 . . 7 3 2 . . 2 2 1 4 . . 5 2 . 2 . . . . 5 . . 4 . 1 . 35 6 Data Loss (major) 16 | . . . . . . . . . . . . . . 2 1 . . . 1 . . . . . . . . . 2 . 1 . 7 2 Misfires 20 | . . . . . . . . . . . . . 3 1 2 . . 1 1 . . . . . . 1 . . 1 . . . 9 1 Alerts 6 | . . . . . . . . . . . . . . . . . . . . . . . . . . . . . . . . . 6 . Misdirections 8 | . . . . . . . . . . . . . . . . . . . . . . . . . . . . 1 . . . . 7 . Targeting Errors 113 | . . . 9 1 . . 6 2 1 . . 1 5 7 2 . . 1 5 . 7 . . . . . . 9 . . 8 2 27 20 Weapon Failures 17 | . . . . 1 . . . . 1 . . . 1 1 1 . . . 1 . 1 . . . . . . 1 . . . . 6 3 Overload Shots 4 | . . . . . . . . . . . . . . . . . . . . . . . . . . . . . . . . . 4 . Effects 2 | . . . . . . . . . . . . . . . . . . . . . . . . . . . . . . . . . 2 . Energy Bleed 1 | . . . . . . . . . . . . . . . . . . . . . . . . . . . . . . . . . 1 . Meltdown 1 | . . . . . . . . . . . . . . . . . . . . . . . . . . . . . . . . . 1 . Overflow Damage 2007 | . . . 56 . . 154 . 3 . . 44 354 . . 10 65 . . . 19 . 269 . . . . . . . 13 92 118 599 211 Projectiles 408 | . . . 13 . . 4 . . . . . . . . . . . . . . . . . . . . . . . . . . 213 178 Explosions 1352 | . . . 43 . . 148 . . . . 44 354 . . . 65 . . . . . 264 . . . . . . . . . 48 386 . Melee 247 | . . . . . . 2 . 3 . . . . . . 10 . . . . 19 . 5 . . . . . . . 13 92 70 . 33 Knockbacks 123 | . . 4 5 . 13 13 . 1 . . . . . 1 . . . . . . . 2 . . . . 2 . . . 1 2 15 64 Impact 15 | . . . 2 . . 2 . 1 . . . . . 1 . . . . . . . 2 . . . . 2 . . . 1 2 1 1 Kinetic 103 | . . 3 2 . 12 10 . . . . . . . . . . . . . . . . . . . . . . . . . . 13 63 Secondary 5 | . . 1 1 . 1 1 . . . . . . . . . . . . . . . . . . . . . . . . . . 1 . Self-Inflicted Damage 2177 | . 45 . . . . 155 18 . . 22 . 241 . . . 94 . . . . . 57 . . 100 . . . . . 28 151 1266 . Shots 52 | . 1 . . . . 2 1 . . . . 4 . . . 1 . . . . . 1 . . . . . . . . . 4 38 . Rammed 167 | . 7 37 27 8 15 14 1 3 . . . 11 . 2 1 . . . . . 3 7 . . 1 3 3 . . 1 4 6 5 8 Targets Rammed 180 | 1 9 40 29 8 17 16 1 3 . . . 12 . 2 1 . . . . . 3 7 . . 1 3 3 . . 1 4 6 5 8 Kicked . | . . . . . . . . . . . . . . . . . . . . . . . . . . . . . . . . . . . Crushed 13 | 1 2 3 2 . 2 2 . . . . . 1 . . . . . . . . . . . . . . . . . . . . . . Highest Temperature 406 | . 111 102 254 266 197 266 223 255 217 172 75 198 277 354 155 141 255 199 199 . 128 12 . 5 108 249 298 97 260 44 240 130 320 406 Average Temperature 65 | . 24 24 64 65 91 57 39 72 67 66 26 65 69 119 62 49 110 99 130 . 45 6 . 3 56 53 50 29 107 22 32 39 86 64 Received Heat Transfer 5359 | . 387 . 768 36 354 594 204 27 9 . 159 362 83 67 9 72 . 9 456 . 105 108 8 91 93 24 153 123 . 8 226 53 606 165 Effects 7 | . . . 1 . . . . . . . . . . . . . . . . . . . . . . . 4 . . . . . . 2 Shutdowns 2 | . . . . . . . . . . . . . . . . . . . . . . . . . . . . . . . . . . 2 Energy Bleed 2 | . . . 1 . . . . . . . . . . . . . . . . . . . . . . . 1 . . . . . . . Interference 3 | . . . . . . . . . . . . . . . . . . . . . . . . . . . 3 . . . . . . . Siege Activations 119 | . . . . . . . . . . . . . . 1 . . 1 3 3 . 3 10 . 3 . 5 9 3 . 2 12 9 20 35 Total Turns 2584 | . . . . . . . . . . . . . . 4 . . 12 27 77 . 39 88 . 58 . 39 699 85 . 34 236 90 506 590 Longest Duration 518 | . . . . . . . . . . . . . . 4 . . 12 17 46 . 21 13 . 27 . 14 518 40 . 17 54 27 97 73 Robots Corrupted 20 | . . . . . . . . . . . . . . . . 1 . . . . . . . . . . . . . . . 5 13 1 Combat Hostiles 19 | . . . . . . . . . . . . . . . . . . . . . . . . . . . . . . . . 5 13 1 Parts Fried 76 | . . . . . . 1 . . . . . . . . 3 2 . . . . . . . . . . . . . . . 9 54 7 Impact Corruptions 15 | . . . . . . 1 . 2 . . . . . . 2 . . . . . . 2 . . . . . . . 1 1 4 . 2 Robots Melted . | . . . . . . . . . . . . . . . . . . . . . . . . . . . . . . . . . . . Combat Hostiles . | . . . . . . . . . . . . . . . . . . . . . . . . . . . . . . . . . . . Parts Melted 7 | . . . . . 1 . . . . . . . . . . . . . . . . 1 . . . . . 1 . . . . 4 . Heat Transferred 7436 | . 309 50 111 . 1425 . . . . . . 900 . . . . . . 50 . . 450 . . . . . . . . . 100 3626 415 Parts Sabotaged 2 | . . . . . . . . . . . . . . . . . . . . . . . . . . . . . . . 2 . . . Parts Stolen . | . . . . . . . . . . . . . . . . . . . . . . . . . . . . . . . . . . . Parts Stripped . | . . . . . . . . . . . . . . . . . . . . . . . . . . . . . . . . . . . Power Chain Reactions 20 | . . . . . . . . . . . . . . . . . . . 1 . . . . . . . . . . . . 2 17 . Missiles Intercepted 3 | . . . . . . . . . . . . . . . . . . . . . . . . . . . . . . . . . 3 . Alert | -11 -10 -10 -9 -9 -8 -8 -7 -7 -7 -7 -6 -6 -6 -6 -6 -6 -5 -5 -5 -5 -4 -4 -4 -4 -4 -3 -3 -3 -3 -2 -2 -1 -1 -1 ------- Run | Scr Mat Min Mat Min Mat Sto Fac Low Low Zio Pro Fac Ext Cet Arc Hub Fac Upp Upp Zhi Pro Fac Upp Upp War Pro Res Arm Lab Res Tes Acc Com Ac0 Peak Influence 1776 | 25 514 147 1454 670 521 911 406 . . . . 429 824 781 569 563 203 . . . . 848 . . . . 741 625 . 745 1327 1776 1004 . Initial 1004 | . 19 142 . 520 76 163 218 . . . . 15 210 460 312 3 154 . . . . 75 . . . . 80 370 . . 390 796 1004 . Average 408 | 18 236 27 833 460 361 450 218 . . . . 246 324 560 242 317 168 . . . . 571 . . . . 496 513 . 447 804 1091 236 . Maximum Alert Level 5 | . 2 . 4 2 2 3 2 . . . . 2 3 3 2 2 1 . . . . 3 . . . . 3 2 . 3 4 5 4 . Low Security (%) 20 | 100 45 100 8 20 10 6 29 . . . . 31 6 . 42 25 72 . . . . 15 . . . . . . . 14 . . 10 . Level 1 20 | . 29 . 16 10 43 13 69 . . . . 62 78 . 39 46 27 . . . . . . . . . 26 1 . 24 7 . 10 . Level 2 23 | . 24 . 17 69 45 75 1 . . . . 6 10 83 18 27 . . . . . 54 . . . . 64 98 . 48 33 . 1 . Level 3 6 | . . . 20 . . 5 . . . . . . 3 16 . . . . . . . 29 . . . . 8 . . 13 38 60 1 . Level 4 29 | . . . 36 . . . . . . . . . . . . . . . . . . . . . . . . . . . 20 27 76 . Level 5 . | . . . . . . . . . . . . . . . . . . . . . . . . . . . . . . . . 12 . . High Security . | . . . . . . . . . . . . . . . . . . . . . . . . . . . . . . . . . . . Max Security . | . . . . . . . . . . . . . . . . . . . . . . . . . . . . . . . . . . . Squads Dispatched 116 | . 6 . 16 . 4 7 9 . 1 . . 12 1 . . 4 . . . . . 8 . . . . 8 3 . 2 18 10 7 . Investigation 33 | . 3 . 9 . 2 3 4 . 1 . . 2 1 . . 2 . . . . . . . . . . 2 . . 2 1 . 1 . Extermination 23 | . . . . . . . 5 . . . . 4 . . . . . . . . . 2 . . . . . 2 . . 4 1 5 . Reinforcement 30 | . 3 . 3 . 2 3 . . . . . 3 . . . 2 . . . . . 2 . . . . 5 . . . 2 4 1 . Assault 16 | . . . 4 . . . . . . . . . . . . . . . . . . 1 . . . . 1 1 . . 6 3 . . Garrison 14 | . . . . . . 1 . . . . . 3 . . . . . . . . . 3 . . . . . . . . 5 2 . . Intercept . | . . . . . . . . . . . . . . . . . . . . . . . . . . . . . . . . . . . Construction Impeded 2 | . . . . . . . . . . . . . . . . . . . . . . . . . . . . . . . . 2 . . Haulers Reinforced 4 | . . . . . . . . . . . . . . . . . . . . . . 1 . . . . 2 . . . . 1 . . Stealth | -11 -10 -10 -9 -9 -8 -8 -7 -7 -7 -7 -6 -6 -6 -6 -6 -6 -5 -5 -5 -5 -4 -4 -4 -4 -4 -3 -3 -3 -3 -2 -2 -1 -1 -1 --------- Run | Scr Mat Min Mat Min Mat Sto Fac Low Low Zio Pro Fac Ext Cet Arc Hub Fac Upp Upp Zhi Pro Fac Upp Upp War Pro Res Arm Lab Res Tes Acc Com Ac0 Distress Signals 60 | . 5 1 6 2 3 6 . . . . . 1 . 2 . 1 1 . . . . . . . 1 . 3 1 . 5 2 3 17 . Communications Jammed 2 | . . . . . . . . . . . . . . . . . . . . . . . . . . . . . . . . 2 . . Distress Signals 2 | . . . . . . . . . . . . . . . . . . . . . . . . . . . . . . . . 2 . . Times Spotted 1050 | . 43 10 107 15 59 61 19 4 13 . 18 44 24 16 17 23 2 8 17 . 13 21 2 14 35 18 48 28 . 29 73 55 142 72 Peak Tracking Total 44 | . 5 11 9 4 6 6 4 3 6 . 6 8 5 5 1 4 2 5 7 . 5 2 1 5 23 5 7 5 . 7 8 14 44 6 Tactical Retreats 44 | . 4 1 4 1 3 6 1 . 1 . 1 3 . . . 1 . 1 2 . . 1 1 2 1 . 4 . . . 1 . 3 2 Traps | -11 -10 -10 -9 -9 -8 -8 -7 -7 -7 -7 -6 -6 -6 -6 -6 -6 -5 -5 -5 -5 -4 -4 -4 -4 -4 -3 -3 -3 -3 -2 -2 -1 -1 -1 ------- Run | Scr Mat Min Mat Min Mat Sto Fac Low Low Zio Pro Fac Ext Cet Arc Hub Fac Upp Upp Zhi Pro Fac Upp Upp War Pro Res Arm Lab Res Tes Acc Com Ac0 Traps Triggered 43 | . 3 . 4 . . 3 2 . . . . 1 11 . . . . . . . . 1 . . . . . . . . 3 . 15 . Indirectly 2 | . . . . . . . . . . . . . . . . . . . . . . . . . . . . . . . . . 2 . Trap Hack Attempts . | . . . . . . . . . . . . . . . . . . . . . . . . . . . . . . . . . . . Triggered . | . . . . . . . . . . . . . . . . . . . . . . . . . . . . . . . . . . . Disarmed 2 | . . . . . . 2 . . . . . . . . . . . . . . . . . . . . . . . . . . . . Reprogrammed . | . . . . . . . . . . . . . . . . . . . . . . . . . . . . . . . . . . . Reused . | . . . . . . . . . . . . . . . . . . . . . . . . . . . . . . . . . . . Traps Extracted . | . . . . . . . . . . . . . . . . . . . . . . . . . . . . . . . . . . . Installed . | . . . . . . . . . . . . . . . . . . . . . . . . . . . . . . . . . . . Triggered 12 | . . . . . . . . 1 2 . 1 . . . . . . . . . . . . . 4 3 . . . . . . 1 . Machines | -11 -10 -10 -9 -9 -8 -8 -7 -7 -7 -7 -6 -6 -6 -6 -6 -6 -5 -5 -5 -5 -4 -4 -4 -4 -4 -3 -3 -3 -3 -2 -2 -1 -1 -1 ---------- Run | Scr Mat Min Mat Min Mat Sto Fac Low Low Zio Pro Fac Ext Cet Arc Hub Fac Upp Upp Zhi Pro Fac Upp Upp War Pro Res Arm Lab Res Tes Acc Com Ac0 Machines Disabled 91 | . 2 . 1 . . 9 . . . . . 6 1 1 4 9 . . . . . 5 . . . . 2 2 1 3 22 4 5 14 Max in Single Turn 6 | . 1 . 1 . . 2 . . . . . 3 . 1 1 6 . . . . . 4 . . . . 1 1 1 1 2 1 1 2 Garrison Access 7 | . . . . . . 1 . . . . . . . . . . . . . . . 1 . . . . 2 . . 2 . 1 . . Network Hub 1 | . . . . . . . . . . . . . . . . 1 . . . . . . . . . . . . . . . . . . Machines Sabotaged . | . . . . . . . . . . . . . . . . . . . . . . . . . . . . . . . . . . . Garrisons Compromised . | . . . . . . . . . . . . . . . . . . . . . . . . . . . . . . . . . . . Overloaded Fab Kills . | . . . . . . . . . . . . . . . . . . . . . . . . . . . . . . . . . . . Fab Network Shutdowns 2 | . . . . . . . . . . . . . . . . . . . . . . 1 . . . . 1 . . . . . . . Hacking | -11 -10 -10 -9 -9 -8 -8 -7 -7 -7 -7 -6 -6 -6 -6 -6 -6 -5 -5 -5 -5 -4 -4 -4 -4 -4 -3 -3 -3 -3 -2 -2 -1 -1 -1 --------- Run | Scr Mat Min Mat Min Mat Sto Fac Low Low Zio Pro Fac Ext Cet Arc Hub Fac Upp Upp Zhi Pro Fac Upp Upp War Pro Res Arm Lab Res Tes Acc Com Ac0 Machines Accessed 113 | . 8 1 13 1 10 16 9 . 1 . . 3 1 1 . 2 2 3 . 4 . 6 . 3 4 . 5 4 . 2 6 2 6 . Terminals 66 | . 5 . 9 1 7 13 6 . 1 . . 2 1 1 . 1 2 . . . . 2 . 1 . . 3 1 . . 4 1 5 . Fabricators 6 | . . . . . . . 1 . . . . . . . . . . . . . . 1 . . . . 1 3 . . . . . . Repair Stations 4 | . 1 . . . . . . . . . . . . . . . . . . . . 1 . . . . 1 . . . . . 1 . Recycling Units 8 | . 2 . 2 . 1 2 1 . . . . . . . . . . . . . . . . . . . . . . . . . . . Scanalyzers 9 | . . . 2 . 2 . 1 . . . . 1 . . . . . . . . . 1 . . . . . . . . 2 . . . Garrison Access 6 | . . . . . . 1 . . . . . . . . . 1 . . . . . 1 . . . . . . . 2 . 1 . . Total Hacks 423 | . 28 1 43 6 34 39 25 . 4 . . 11 5 2 . 16 10 7 . 17 . 22 . 11 10 . 18 20 . 4 24 15 51 . Successful 278 | . 17 1 23 3 27 31 13 . 3 . . 5 3 1 . 5 4 7 . 17 . 15 . 9 10 . 7 12 . 2 11 11 41 . Failed 138 | . 10 . 20 3 6 8 12 . . . . 5 1 1 . 10 6 . . . . 7 . 1 . . 11 8 . 2 13 4 10 . Catastrophic 14 | . 3 . 1 . 1 . 2 . . . . . . . . 1 1 . . . . 1 . . . . 1 . . . 2 1 . . Database Lockouts 7 | . 1 . . . 1 . . . 1 . . 1 1 . . 1 . . . . . . . 1 . . . . . . . . . . Manual 216 | . 15 . 32 6 25 27 6 . 4 . . 7 5 3 . 8 3 . . . . 5 . 5 . . 4 10 . 4 6 5 36 . Terminals 292 | . 22 . 37 6 30 36 15 . 4 . . 8 5 2 . 14 10 . . . . 11 . 5 . . 9 5 . . 16 14 43 . Fabricators 29 | . . . . . . . 5 . . . . . . . . . . . . . . 4 . . . . 5 15 . . . . . . Repair Stations 17 | . 2 . . . . . . . . . . . . . . . . . . . . 3 . . . . 4 . . . . . 8 . Recycling Units 12 | . 4 . 3 . 2 2 1 . . . . . . . . . . . . . . . . . . . . . . . . . . . Scanalyzers 23 | . . . 3 . 2 . 4 . . . . 3 . . . . . . . . . 3 . . . . . . . . 8 . . . Garrison Access 9 | . . . . . . 1 . . . . . . . . . 2 . . . . . 1 . . . . . . . 4 . 1 . . Terminal Hacks 168 | . 6 1 12 3 15 20 4 . 3 . . 4 3 1 . 4 4 7 . 17 . 5 . 9 10 . . 1 . . 3 8 28 . Record 24 | . . . . . . . . . . . . . . . . . . 5 . 5 . . . 5 9 . . . . . . . . . Part Schematic 6 | . . . . . . 1 1 . . . . . . . . . . . . 4 . . . . . . . . . . . . . . Robot Schematic 1 | . . . . . . 1 . . . . . . . . . . . . . . . . . . . . . . . . . . . . Robot Analysis 10 | . 2 . 1 . . . . . . . . . . . . . . . . 4 . 2 . . . . . 1 . . . . . . Prototype ID Bank 31 | . 1 . 3 . 3 1 . . 3 . . 1 2 . . 2 . . . 4 . . . 3 . . . . . . . 1 7 . Open Door 11 | . . 1 . . . 5 . . . . . . . . . . . 2 . . . . . 1 1 . . . . . . . 1 . Level Access Points 2 | . . . . . . . . . . . . . . . . . . . . . . . . . . . . . . . . 1 1 . Branch Access Points 5 | . . . 1 . 1 . . . . . . . . . . . 1 . . . . 1 . . . . . . . . . 1 . . Terminal Index 3 | . . . . . . 1 1 . . . . . . . . . . . . . . . . . . . . . . . . . 1 . Alert Level 18 | . . . 4 2 1 3 1 . . . . 1 1 . . . 1 . . . . . . . . . . . . . . 1 3 . Unreport Threat 21 | . . . 3 1 2 4 . . . . . . . . . 2 . . . . . . . . . . . . . . 2 . 7 . Locate Traps 4 | . 1 . . . . . . . . . . 1 . . . . . . . . . . . . . . . . . . . 1 1 . Disarm Traps 1 | . . . . . . 1 . . . . . . . . . . . . . . . . . . . . . . . . . . . . Dispatch Records 4 | . . . . . 2 1 . . . . . . . 1 . . . . . . . . . . . . . . . . . . . . Patrol Status 6 | . . . . . 1 1 . . . . . . . . . . 1 . . . . . . . . . . . . . . . 3 . Hauler Manifests 5 | . 1 . . . 1 1 . . . . . . . . . . 1 . . . . 1 . . . . . . . . . . . . Registered Components 3 | . 1 . . . . . . . . . . . . . . . . . . . . . . . . . . . . . . 1 1 . Registered Prototypes 2 | . . . . . . . . . . . . . . . . . . . . . . . . . . . . . . . . 1 1 . Zone Layout 10 | . . . . . 4 . 1 . . . . 1 . . . . . . . . . 1 . . . . . . . . 1 1 1 . Disengage Seal 1 | . . . . . . . . . . . . . . . . . . . . . . . . . . . . . . . . . 1 . Fabricator Hacks 14 | . . . . . . . 2 . . . . . . . . . . . . . . 3 . . . . 2 7 . . . . . . Load Schematic 6 | . . . . . . . 1 . . . . . . . . . . . . . . 1 . . . . 1 3 . . . . . . Build 8 | . . . . . . . 1 . . . . . . . . . . . . . . 2 . . . . 1 4 . . . . . . Repair Station Hacks 12 | . 2 . . . . . . . . . . . . . . . . . . . . 2 . . . . 2 . . . . . 6 . Scan Component 6 | . 1 . . . . . . . . . . . . . . . . . . . . 1 . . . . 1 . . . . . 3 . Repair 6 | . 1 . . . . . . . . . . . . . . . . . . . . 1 . . . . 1 . . . . . 3 . Recycling Unit Hacks 5 | . 2 . 1 . 1 1 . . . . . . . . . . . . . . . . . . . . . . . . . . . . Report Inventory 4 | . 2 . 1 . . 1 . . . . . . . . . . . . . . . . . . . . . . . . . . . . Retrieve Components 1 | . . . . . 1 . . . . . . . . . . . . . . . . . . . . . . . . . . . . . Scanalyzer 13 | . . . 1 . . . 4 . . . . 1 . . . . . . . . . 2 . . . . . . . . 5 . . . Insert Component 11 | . . . 1 . . . 2 . . . . 1 . . . . . . . . . 2 . . . . . . . . 5 . . . Analyze 2 | . . . . . . . 2 . . . . . . . . . . . . . . . . . . . . . . . . . . . Garrison Access Hacks 3 | . . . . . . 1 . . . . . . . . . . . . . . . 1 . . . . . . . . . 1 . . Seal Access 3 | . . . . . . 1 . . . . . . . . . . . . . . . 1 . . . . . . . . . 1 . . Unauthorized Hacks 63 | . 7 . 9 . 11 9 3 . . . . . . . . 1 . . . . . 2 . . . . 3 4 . 2 3 2 7 . Terminals 46 | . 5 . 5 . 9 8 2 . . . . . . . . 1 . . . . . 1 . . . . 2 1 . . 3 2 7 . Track 23 | . 4 . 2 . 5 2 1 . . . . . . . . . . . . . . . . . . . 2 . . . 3 . 4 . Assimilate 1 | . . . . . 1 . . . . . . . . . . . . . . . . . . . . . . . . . . . . . Botnet 15 | . . . 2 . 2 5 1 . . . . . . . . . . . . . . 1 . . . . . 1 . . . 1 2 . Disrupt 1 | . 1 . . . . . . . . . . . . . . . . . . . . . . . . . . . . . . . . . Operators 4 | . . . . . 1 1 . . . . . . . . . . . . . . . . . . . . . . . . . 1 1 . Sabotage 1 | . . . . . . . . . . . . . . . . 1 . . . . . . . . . . . . . . . . . . Search 1 | . . . 1 . . . . . . . . . . . . . . . . . . . . . . . . . . . . . . . Fabricators 5 | . . . . . . . . . . . . . . . . . . . . . . 1 . . . . 1 3 . . . . . . Report 2 | . . . . . . . . . . . . . . . . . . . . . . . . . . . 1 1 . . . . . . Prioritize 2 | . . . . . . . . . . . . . . . . . . . . . . 1 . . . . . 1 . . . . . . Siphon 1 | . . . . . . . . . . . . . . . . . . . . . . . . . . . . 1 . . . . . . Repair Stations . | . . . . . . . . . . . . . . . . . . . . . . . . . . . . . . . . . . . Recycling Units 6 | . 2 . 2 . . 1 1 . . . . . . . . . . . . . . . . . . . . . . . . . . . Tunnel 6 | . 2 . 2 . . 1 1 . . . . . . . . . . . . . . . . . . . . . . . . . . . Scanalyzers 4 | . . . 2 . 2 . . . . . . . . . . . . . . . . . . . . . . . . . . . . . Extract 4 | . . . 2 . 2 . . . . . . . . . . . . . . . . . . . . . . . . . . . . . Garrison Access 2 | . . . . . . . . . . . . . . . . . . . . . . . . . . . . . . 2 . . . . Jam 2 | . . . . . . . . . . . . . . . . . . . . . . . . . . . . . . 2 . . . . Data Cores Recovered 1 | . . . 1 . . . . . . . . . . . . . . . . . . . . . . . . . . . . . . . Used . | . . . . . . . . . . . . . . . . . . . . . . . . . . . . . . . . . . . Hacking Detections 80 | . 6 . 10 1 7 12 8 . 1 . . 3 1 1 . 2 2 . . . . 5 . 1 . . 4 4 . . 6 1 5 . Full Trace Events 11 | . . . 3 . . 1 3 . 1 . . 2 . . . 1 . . . . . . . . . . . . . . . . . . Feedback Events 1 | . . . . . . . 1 . . . . . . . . . . . . . . . . . . . . . . . . . . . Corruption 1 | . . . . . . . 1 . . . . . . . . . . . . . . . . . . . . . . . . . . . Feedback Blocked . | . . . . . . . . . . . . . . . . . . . . . . . . . . . . . . . . . . . Robot Schematics Acquired 1 | . . . . . . 1 . . . . . . . . . . . . . . . . . . . . . . . . . . . . Robots Built . | . . . . . . . . . . . . . . . . . . . . . . . . . . . . . . . . . . . Matter . | . . . . . . . . . . . . . . . . . . . . . . . . . . . . . . . . . . . Time . | . . . . . . . . . . . . . . . . . . . . . . . . . . . . . . . . . . . Total Robot Build Rating . | . . . . . . . . . . . . . . . . . . . . . . . . . . . . . . . . . . . Part Schematics Acquired 21 | . . . 3 . 10 1 3 . . . . . . . . . . . . 4 . . . . . . . . . . . . . . Parts Built 10 | . . . . . . . 2 . . . . . . . . . . . . . . 2 . . . . 2 4 . . . . . . Matter 2310 | . . . . . . . 190 . . . . . . . . . . . . . . 702 . . . . 190 1228 . . . . . . Time 591 | . . . . . . . 47 . . . . . . . . . . . . . . 139 . . . . 95 310 . . . . . . Total Part Build Rating 62 | . . . . . . . 10 . . . . . . . . . . . . . . 14 . . . . 10 28 . . . . . . Parts Repaired 6 | . 1 . . . . . . . . . . . . . . . . . . . . 1 . . . . 1 . . . . . 3 . Time 263 | . 26 . . . . . . . . . . . . . . . . . . . . 54 . . . . 56 . . . . . 127 . Parts Recycled . | . . . . . . . . . . . . . . . . . . . . . . . . . . . . . . . . . . . Recycled Matter . | . . . . . . . . . . . . . . . . . . . . . . . . . . . . . . . . . . . Retrieved Matter . | . . . . . . . . . . . . . . . . . . . . . . . . . . . . . . . . . . . Retrieved Components 9 | . . . . . 9 . . . . . . . . . . . . . . . . . . . . . . . . . . . . . Parts Scanalyzed 2 | . . . . . . . 2 . . . . . . . . . . . . . . . . . . . . . . . . . . . Part Schematics Acquired 2 | . . . . . . . 2 . . . . . . . . . . . . . . . . . . . . . . . . . . . Parts Damaged . | . . . . . . . . . . . . . . . . . . . . . . . . . . . . . . . . . . . Bothacking | -11 -10 -10 -9 -9 -8 -8 -7 -7 -7 -7 -6 -6 -6 -6 -6 -6 -5 -5 -5 -5 -4 -4 -4 -4 -4 -3 -3 -3 -3 -2 -2 -1 -1 -1 ------------ Run | Scr Mat Min Mat Min Mat Sto Fac Low Low Zio Pro Fac Ext Cet Arc Hub Fac Upp Upp Zhi Pro Fac Upp Upp War Pro Res Arm Lab Res Tes Acc Com Ac0 Used RIF Installer . | . . . . . . . . . . . . . . . . . . . . . . . . . . . . . . . . . . . Robots Hacked 3 | . . . . . . . 1 . . . . 1 . . . . 1 . . . . . . . . . . . . . . . . . Non-combat 3 | . . . . . . . 1 . . . . 1 . . . . 1 . . . . . . . . . . . . . . . . . Combat . | . . . . . . . . . . . . . . . . . . . . . . . . . . . . . . . . . . . Robot Hacks Applied 3 | . . . . . . . 1 . . . . 1 . . . . 1 . . . . . . . . . . . . . . . . . find_chute 3 | . . . . . . . 1 . . . . 1 . . . . 1 . . . . . . . . . . . . . . . . . Relay Couplers Released 11 | . . . . . . . . . . . . 4 . . . . . . . . . . . . . . 3 . . 4 . . . . Machine Destruction 3 | . . . . . . . . . . . . . . . . . . . . . . . . . . . 3 . . . . . . . Programmers 8 | . . . . . . . . . . . . 4 . . . . . . . . . . . . . . . . . 4 . . . . Robots Rewired 13 | . . . . . . . . . . . . . 13 . . . . . . . . . . . . . . . . . . . . . Allies Hacked . | . . . . . . . . . . . . . . . . . . . . . . . . . . . . . . . . . . . Hacks Repelled . | . . . . . . . . . . . . . . . . . . . . . . . . . . . . . . . . . . . Allies | -11 -10 -10 -9 -9 -8 -8 -7 -7 -7 -7 -6 -6 -6 -6 -6 -6 -5 -5 -5 -5 -4 -4 -4 -4 -4 -3 -3 -3 -3 -2 -2 -1 -1 -1 -------- Run | Scr Mat Min Mat Min Mat Sto Fac Low Low Zio Pro Fac Ext Cet Arc Hub Fac Upp Upp Zhi Pro Fac Upp Upp War Pro Res Arm Lab Res Tes Acc Com Ac0 Total Allies 42 | . . 3 . . . 10 . . . 3 . . 14 5 . . . . . . . . . . . . . . . . . . . 7 Largest Group 13 | . . 3 . . . 10 . . . 3 3 . 13 6 4 4 . . . . . . . . . . . . . . . . . 7 Highest-Rated Group 524 | . . 40 . . . 173 . . . 76 76 . 522 524 371 371 . . . . . . . . . . . . . . . . . 100 Highest-Rated Ally 156 | . . 16 . . . 29 . . . 31 31 . 156 148 94 94 . . . . . . . . . . . . . . . . . 15 Total Orders 130 | . . 1 . . . 1 . . . . . 9 1 2 2 3 4 . . . . 3 1 3 23 16 5 . 5 20 . 7 . 24 STAY 13 | . . . . . . . . . . . . . . 1 1 . . . . . . . . . 2 . . . 4 . . . . 5 ROAM 2 | . . 1 . . . 1 . . . . . . . . . . . . . . . . . . . . . . . . . . . . FOLLOW 8 | . . . . . . . . . . . . . . . 1 . 1 . . . . . . . 2 1 . . . 3 . . . . EXPLORE 38 | . . . . . . . . . . . . . . . . . 1 . . . . . . 1 6 4 5 . . 2 . 4 . 15 RETURN 69 | . . . . . . . . . . . . 9 1 1 . 3 2 . . . . 3 1 2 13 11 . . 1 15 . 3 . 4 Ally Attacks 822 | . . 9 . . . 79 . . . . 41 . 125 76 4 73 . . . . . 4 15 2 58 95 9 . . 196 . . . 36 Total Damage 17338 | . . 98 . . . 940 . . . . 697 . 3252 1996 187 2535 . . . . . 51 288 21 1283 1631 107 . . 3805 . . . 447 Kills 124 | . . 2 . . . 13 . . . . 8 . 27 9 2 15 . . . . . 1 4 . 7 12 . . . 23 . . . 1 Allies Corrupted 1 | . . . . . . . . . . . . . . . . . . . . . . . . . . . . . . 1 . . . . Allies Melted . | . . . . . . . . . . . . . . . . . . . . . . . . . . . . . . . . . . . Intel | -11 -10 -10 -9 -9 -8 -8 -7 -7 -7 -7 -6 -6 -6 -6 -6 -6 -5 -5 -5 -5 -4 -4 -4 -4 -4 -3 -3 -3 -3 -2 -2 -1 -1 -1 ------- Run | Scr Mat Min Mat Min Mat Sto Fac Low Low Zio Pro Fac Ext Cet Arc Hub Fac Upp Upp Zhi Pro Fac Upp Upp War Pro Res Arm Lab Res Tes Acc Com Ac0 Robot Analysis Total 10 | . 2 . 1 . . . . . . . . . . . . . . . . 4 . 2 . . . . . 1 . . . . . . Derelict Logs Recovered 17 | . . 3 . 1 . . . 1 2 1 2 . . . . . . 2 1 . 2 . 1 1 . . . . . . . . . . Drone Launches 130 | . . . . . . . . . . . . 10 1 1 . 3 1 . . . . 6 3 1 21 19 10 . 6 31 . 4 . 13 Drone Recoveries 102 | . . . . . . . . . . . . 10 1 1 . 3 1 . . . . 6 1 2 20 17 1 . . 29 . 3 . 7 Exploration | -11 -10 -10 -9 -9 -8 -8 -7 -7 -7 -7 -6 -6 -6 -6 -6 -6 -5 -5 -5 -5 -4 -4 -4 -4 -4 -3 -3 -3 -3 -2 -2 -1 -1 -1 ------------- Run | Scr Mat Min Mat Min Mat Sto Fac Low Low Zio Pro Fac Ext Cet Arc Hub Fac Upp Upp Zhi Pro Fac Upp Upp War Pro Res Arm Lab Res Tes Acc Com Ac0 Turns Passed 67851 | 202 2308 3215 3657 1504 2423 3173 1800 651 725 2601 1049 1856 1149 336 2089 508 365 870 795 326 572 1294 997 1030 797 1098 2925 1023 1509 1993 1566 824 16858 3763 Spaces Moved 25249 | 106 741 955 1762 641 874 997 770 326 374 1349 519 727 513 124 229 266 164 435 375 182 261 510 499 511 401 474 1001 407 259 1058 624 300 5168 1347 Core 202 | 8 . . . . . . . . . . . . . . 58 . . . . . . . . . . . . . 30 . . . 106 . Treads 24029 | 98 741 562 1762 641 874 997 770 326 374 1349 519 641 356 124 171 95 32 435 375 182 261 510 499 511 401 474 1001 407 229 1058 624 300 4983 1347 Legs 72 | . . . . . . . . . . . . . 72 . . . . . . . . . . . . . . . . . . . . . Wheels 946 | . . 393 . . . . . . . . . 86 85 . . 171 132 . . . . . . . . . . . . . . . 79 . Hover . | . . . . . . . . . . . . . . . . . . . . . . . . . . . . . . . . . . . Flight . | . . . . . . . . . . . . . . . . . . . . . . . . . . . . . . . . . . . Fastest Speed 50 | 50 160 100 160 160 160 180 181 181 181 181 190 140 140 160 160 160 160 180 160 160 180 180 181 180 180 180 172 172 177 165 165 180 180 155 Average Speed 207 | 152 160 141 160 160 168 190 189 181 181 188 190 189 173 163 880 169 171 180 178 168 180 180 181 180 180 187 174 176 550 167 167 180 286 181 Slowest Speed 5650 | 160 180 180 180 180 180 230 190 181 181 190 190 225 245 180 2950 200 180 180 180 180 200 200 181 181 200 190 180 230 3350 177 180 200 5650 197 Overloaded Moves . | . . . . . . . . . . . . . . . . . . . . . . . . . . . . . . . . . . . Propulsion Burnouts . | . . . . . . . . . . . . . . . . . . . . . . . . . . . . . . . . . . . Robots Hopped . | . . . . . . . . . . . . . . . . . . . . . . . . . . . . . . . . . . . Cave-ins Triggered . | . . . . . . . . . . . . . . . . . . . . . . . . . . . . . . . . . . . Teleports 3 | . . . . . . . . . . . . . . . . . . . . . . . . . . . . 1 . . . . 1 1 Exploration Rate (%) 61 | 5 99 99 97 98 73 90 25 49 62 85 74 26 56 67 81 34 8 58 57 60 47 12 83 55 97 65 47 20 91 54 80 10 92 88 Regions Visited 34 Branch Regions 24 Pre-discovered Areas 18 | . 2 1 2 1 . 2 1 . 1 2 . . . . . . . . . 3 1 . . 1 1 . . . . . . . . . Known Exits Taken 16 | . . . 1 . 1 . . . 1 . 1 1 . 1 . 1 1 . . . . 1 . . . 1 1 1 1 1 1 1 . . Unknown Exits Taken 18 | 1 1 1 . 1 . 1 1 1 . 1 . . 1 . 1 . . 1 1 1 1 . 1 1 1 . . . . . . . 1 . Scrap Searched 24 | . . 2 . 1 . . . 2 . 2 1 . . . . . . 3 3 . 3 . 3 2 . 2 . . . . . . . . Spaces Dug 123 | . 4 10 . . 8 2 . . . . . 8 . . . . . 1 21 . 2 2 . . 4 . 15 7 . 14 5 8 10 2 Terrain Destroyed 1454 | . 53 63 147 . 8 49 . . . . 47 28 . 8 14 164 2 6 46 . 27 60 . 10 7 1 28 8 . 62 98 57 54 407 Melee 46 | . 2 . . . . 2 . . . . . 8 . . . . . 1 . . 1 1 . . 4 . 7 5 . 1 5 7 2 . Projectile 767 | . 4 19 . . . . . . . . . . . 8 14 5 2 5 9 . 26 19 . 10 1 1 21 3 . 61 92 38 22 407 AOE 635 | . 47 44 147 . 8 47 . . . . 47 20 . . . 159 . . 37 . . 40 . . . . . . . . . 12 27 . Terrain Rammed 7 | . . . . . . . . . . 1 . . . . . . . . . . . . . . 2 . . . . . 1 . 3 . Walls Destroyed 6 | . . . . . . . . . . . . . . . . . . . . . . . . . 2 . . . . . 1 . 3 . Machines Disabled . | . . . . . . . . . . . . . . . . . . . . . . . . . . . . . . . . . . . Actions | -11 -10 -10 -9 -9 -8 -8 -7 -7 -7 -7 -6 -6 -6 -6 -6 -6 -5 -5 -5 -5 -4 -4 -4 -4 -4 -3 -3 -3 -3 -2 -2 -1 -1 -1 --------- Run | Scr Mat Min Mat Min Mat Sto Fac Low Low Zio Pro Fac Ext Cet Arc Hub Fac Upp Upp Zhi Pro Fac Upp Upp War Pro Res Arm Lab Res Tes Acc Com Ac0 Total 37351 | 127 1673 2674 2233 1070 1655 2035 1010 354 393 1415 542 1029 734 196 269 306 239 494 433 197 309 797 588 577 461 657 1988 620 340 1213 987 468 7045 2223 Wait 7678 | . 763 1586 163 387 598 848 141 8 . 36 . 84 11 17 2 17 47 28 15 . 12 193 86 40 31 138 743 104 34 19 178 37 1019 293 Move 25215 | 106 740 954 1761 640 873 996 769 325 373 1348 518 726 512 123 228 265 163 434 374 181 260 509 498 510 400 473 1000 406 258 1057 623 299 5167 1346 Hop . | . . . . . . . . . . . . . . . . . . . . . . . . . . . . . . . . . . . Pick Up 517 | 5 16 14 15 1 27 18 16 1 3 9 1 29 4 4 9 2 6 2 2 3 3 9 . 2 2 7 33 13 12 26 19 4 166 34 Fast Attach 226 | 7 10 3 7 . 7 10 4 . . 2 . 13 8 7 2 2 2 5 . 2 1 4 . . 5 1 12 3 3 10 4 1 50 41 Attach 256 | . 4 1 9 1 10 9 6 1 2 3 1 13 2 2 4 . 4 1 3 5 . 5 . 2 1 10 12 7 7 8 6 8 64 45 Detach 104 | . 2 1 4 . . 2 . . . 1 . 3 1 . 3 1 1 1 2 . . 1 . . 2 4 1 1 4 . . . 47 22 Swap 538 | . 12 20 37 5 16 21 10 2 . 3 3 44 5 4 1 11 7 3 2 2 4 20 2 1 4 7 42 24 4 26 42 27 60 67 Drop 583 | 1 19 6 36 4 32 17 18 1 2 11 . 28 11 12 4 2 5 7 6 2 . 10 . 2 6 3 37 16 11 35 23 6 161 49 Fire 1745 | 8 95 44 172 24 75 89 43 13 13 1 19 67 18 21 15 6 3 12 29 . 24 35 2 20 3 10 93 38 . 30 70 72 263 318 Melee 99 | . 3 . . . . 9 . . . . . 8 . 4 . . 1 1 . 2 2 1 . . 4 1 9 8 4 1 17 8 16 . Ram 7 | . . . . . . . . . . 1 . . . . . . . . . . . . . . 2 . . . . . 1 . 3 . Kick . | . . . . . . . . . . . . . . . . . . . . . . . . . . . . . . . . . . . Crush 179 | . 9 40 29 8 17 16 1 3 . . . 12 . 2 1 . . . . . 3 7 . . 1 3 3 . . 1 4 6 5 8 Escape Stasis 48 | . . . . . . . 2 . . . . 2 20 . . . . . . . . . . . . . . . . . . . 24 . Rewire 150 | . . 5 . . . . . . . . . . 142 . . . . . . . . 3 . . . . . . . . . . . . Trap . | . . . . . . . . . . . . . . . . . . . . . . . . . . . . . . . . . . . Miscellaneous 6 | . . . . . . . . . . . . . . . . . . . . . . . . . . . 3 . 3 . . . . . Route ------- -11/Scrapyard -10/Materials (discovered 4 exits: *Mat x3 / *Min) -10/Mines (discovered 3 exits: *Mat x2 / [*Exi]) -9/Materials (discovered 5 exits: *Mat x3 / *Min x2) -9/Mines (discovered 2 exits: *Mat x2) -8/Materials (discovered 3 exits: *Fac x2 / *Sto) -8/Storage -7/Factory (discovered 4 exits: *Fac x3 / [*Low]) -7/Lower Caves -7/Lower Caves (discovered 2 exits: *Fac / *Zio) -7/Zion -6/Proximity Caves -6/Factory (discovered 8 exits: Fac x4 / *Low x2 / *Ext x2) -6/Extension (discovered 2 exits: *Fac / *Cet) -6/Cetus (discovered 3 exits: Fac x2 / *Arc) -6/Archives (discovered 3 exits: *Fac / *Hub x2) -6/Hub_04(d) (discovered 2 exits: *Fac x2) -5/Factory (discovered 2 exits: *Upp x2) -5/Upper Caves -5/Upper Caves (discovered 2 exits: *Fac / *Zhi) -5/Zhirov -4/Proximity Caves -4/Factory (discovered 4 exits: *Res x2 / *Upp x2) -4/Upper Caves -4/Upper Caves -4/Warlord -3/Proximity Caves -3/Research (discovered 4 exits: *Res x3 / *Arm) -3/Armory (discovered 2 exits: *Res / *Lab) -3/Lab -2/Research (discovered 2 exits: *Acc / *Tes) -2/Testing -1/Access (discovered 2 exits: Sur / *Com) -1/Command (discovered 3 exits: *Sur x2 / [*Ac0]) -1/Access_0 To Fleet Rendezvous History --------- Turn | Location | Event 7 | -11/Scrapyard | Discovered new exit (range 16) 203 | -11/Scrapyard | Entered Materials 309 | -10/Materials | Build established: Mutant 579 | -10/Materials | Discovered new exit (range 6) 662 | -10/Materials | Discovered new exit (range 7) 1082 | -10/Materials | Central database locked down 1118 | -10/Materials | Repaired Lgt. Treads 1440 | -10/Materials | Discovered new exit (range 15) 1701 | -10/Materials | Discovered new exit (range 16) 2511 | -10/Materials | Entered Mines 2518 | -10/Mines | Met a Derelict bent on vengeance 2581 | -10/Mines | Discovered new exit (range 16) 2619 | -10/Mines | Received a Rocket Launcher from a helpful Derelict 3805 | -10/Mines | A weapon hastily lodged in a ceiling crevice suddenly fell to the ground 3854 | -10/Mines | Learned Materials terminal intel 4285 | -10/Mines | Assisted by bots powering up and referring to "LRC-V3" 4327 | -10/Mines | Learned Materials non-interactive machine intel 4348 | -10/Mines | Assembled infested the area 5080 | -10/Mines | Found the Drone Emporium 5088 | -10/Mines | Found Prototype Device 5088 | -10/Mines | Identified Bomb Drone Bay 5150 | -10/Mines | Discovered new exit (range 9) 5193 | -10/Mines | Discovered new exit (range 5) 5726 | -10/Mines | Entered Materials 5726 | -9/Materials | Evolved 2 slots: Weapon x2 5727 | -9/Materials | Loaded intel: 34 non-interactive machine locations 5728 | -9/Materials | Loaded intel: 12 terminal locations 6020 | -9/Materials | Build established: Tank 6078 | -9/Materials | Discovered new exit (range 8) 6577 | -9/Materials | Discovered new exit (range 13) 6815 | -9/Materials | Discovered new exit (range 8) 6841 | -9/Materials | Identified exit to Mines 7013 | -9/Materials | Discovered new exit (range 15) 7326 | -9/Materials | First assault squad dispatched 7821 | -9/Materials | Discovered new exit (range 10) 8218 | -9/Materials | Destroyed 9 combat bots 8950 | -9/Materials | Core integrity fell below 50% 9383 | -9/Materials | Entered Mines 9384 | -9/Mines | Learned location of Storage (-8) 9654 | -9/Mines | Build established: Scavenger-Tank 9806 | -9/Mines | Discovered new exit (range 9) 9876 | -9/Mines | Discovered new exit (range 5) 9913 | -9/Mines | Learned Materials interactive machine intel 10887 | -9/Mines | Entered Materials 10887 | -8/Materials | Evolved 2 slots: Utility x2 10888 | -8/Materials | Loaded intel: 19 interactive machine locations 11069 | -8/Materials | Central database locked down 11236 | -8/Materials | Identified exit to Storage 11654 | -8/Materials | Destroyed 7 combat bots 11931 | -8/Materials | Build established: Tank 12054 | -8/Materials | Discovered new exit (range 16) 12308 | -8/Materials | Build established: Scavenger-Tank 12436 | -8/Materials | Discovered new exit (range 16) 12619 | -8/Materials | Build established: Tank 13310 | -8/Materials | Entered Storage 13970 | -8/Storage | Destroyed 10 combat bots 14229 | -8/Storage | Learned location of Armory (-3) 14391 | -8/Storage | Garrison activated, responded to threat 14499 | -8/Storage | Assisted by bots powering up and referring to "LRC-V3" 14781 | -8/Storage | Build established: Commander-Tank 14785 | -8/Storage | Discovered new exit (range 16) 15297 | -8/Storage | Build established: Hauler-Tank 16483 | -8/Storage | Entered Factory 16483 | -7/Factory | Evolved 2 slots: Propulsion x1, Utility x1 16766 | -7/Factory | Discovered new exit (range 7) 16788 | -7/Factory | Identified exit to Factory 17308 | -7/Factory | Discovered exit to Factory (range 10) 17787 | -7/Factory | Discovered exit to Factory (range 11) 17830 | -7/Factory | Fabricated Hyp. Gauss Rifle? 18082 | -7/Factory | Discovered new exit (range 12) 18283 | -7/Factory | Entered Lower Caves 18312 | -7/Lower Caves | Spotted B-75 Beast 18339 | -7/Lower Caves | Destroyed B-75 Beast 18765 | -7/Lower Caves | Learned Factory emergency access door positions 18894 | -7/Lower Caves | Discovered new exit (range 7) 18934 | -7/Lower Caves | Entered another Lower Caves area 18958 | -7/Lower Caves | Discovered exit to Factory (range 6) 18971 | -7/Lower Caves | Spotted B-75 Beast 18989 | -7/Lower Caves | Destroyed B-75 Beast 19375 | -7/Lower Caves | Identified exit to Zion 19451 | -7/Lower Caves | Central database locked down 19659 | -7/Lower Caves | Entered Zion 19750 | -7/Zion | System corruption cleaned by Quarantine Array 19857 | -7/Zion | Discovered new exit (range 13) 20119 | -7/Zion | Learned Factory repair station intel 20175 | -7/Zion | Learned location of 1 exit from Factory 20201 | -7/Zion | Given the Hacking Drone Bay 20202 | -7/Zion | Found Prototype Device 20228 | -7/Zion | Learned location of Data Miner (-6) 20538 | -7/Zion | Found Unknown Piercing Weapon 20538 | -7/Zion | Identified CR-A16's Pointy Stick 20819 | -7/Zion | Found Prototype Device 21396 | -7/Zion | Identified Hacking Drone Bay 22026 | -7/Zion | Gained Derelict followers 22260 | -7/Zion | Entered Proximity Caves 22260 | -6/Proximity Caves | Accompanied by 3 allies 22879 | -6/Proximity Caves | Learned Factory terminal intel 23206 | -6/Proximity Caves | Attracted the attention of an 0b10 checkpoint 23309 | -6/Proximity Caves | Entered Factory 23309 | -6/Factory | Evolved 2 slots: Propulsion x1, Utility x1 23310 | -6/Factory | Identified exit to Factory 23312 | -6/Factory | Loaded intel: 22 terminal locations 23313 | -6/Factory | Loaded intel: 6 repair station locations 23602 | -6/Factory | Build established: Hauler-Gunner 23810 | -6/Factory | Garrison activated, responded to threat 23865 | -6/Factory | Destroyed 7 combat bots 24107 | -6/Factory | Identified Mobile Refinery Mk. CCLXVII 24540 | -6/Factory | Identified exit to Lower Caves 24540 | -6/Factory | Identified exit to Extension 24882 | -6/Factory | Build established: Hauler-Tank 25156 | -6/Factory | Central database locked down 25165 | -6/Factory | Entered Extension 25254 | -6/Extension | Rescued A7 25848 | -6/Extension | Build established: Commander-Tank 26038 | -6/Extension | Spotted B-75 Beast 26043 | -6/Extension | Allies destroyed B-75 Beast 26054 | -6/Extension | Spotted B-75 Beast 26066 | -6/Extension | Allies destroyed B-75 Beast 26076 | -6/Extension | Central database locked down 26265 | -6/Extension | Disrupted transfer network 26280 | -6/Extension | Discovered new exit (range 15) 26282 | -6/Extension | Discovered exit to Factory (range 15) 26314 | -6/Extension | Entered Cetus 26314 | -6/Cetus | Accompanied by 6 allies (A7) 26319 | -6/Cetus | Acquired a Cetus Manufacturing Module code from A7 26338 | -6/Cetus | Spotted Cetus Guard 26338 | -6/Cetus | Spotted Cetus Guard 26340 | -6/Cetus | Spotted Cetus Guard 26341 | -6/Cetus | Spotted Cetus Guard 26345 | -6/Cetus | Destroyed Cetus Guard 26352 | -6/Cetus | Destroyed Cetus Guard 26360 | -6/Cetus | Allies destroyed Cetus Guard 26372 | -6/Cetus | Allies destroyed Cetus Guard 26463 | -6/Cetus | Started Cetus Manufacturing Module 26469 | -6/Cetus | Identified exit to Archives 26488 | -6/Cetus | Manufactured an Enhanced Grunt 26513 | -6/Cetus | Manufactured an Enhanced Grunt 26538 | -6/Cetus | Manufactured an Enhanced Grunt 26563 | -6/Cetus | Manufactured an Enhanced Grunt 26572 | -6/Cetus | Spotted Cetus Guard 26572 | -6/Cetus | Spotted Cetus Guard 26578 | -6/Cetus | Spotted Cetus Guard 26583 | -6/Cetus | Spotted Cetus Guard 26588 | -6/Cetus | Manufactured an Enhanced Grunt 26589 | -6/Cetus | Destroyed Cetus Guard 26596 | -6/Cetus | Allies destroyed Cetus Guard 26596 | -6/Cetus | Extracted ID and sensor layout for unrecognized location from A7's data core 26598 | -6/Cetus | Destroyed Cetus Guard 26601 | -6/Cetus | Destroyed Cetus Guard 26650 | -6/Cetus | Entered Archives 26650 | -6/Archives | Accompanied by 4 allies 26701 | -6/Archives | Build established: Scavenger-Gunner 26719 | -6/Archives | Discovered new exit (range 15) 26740 | -6/Archives | Discovered new exit (range 13) 27096 | -6/Archives | Build established: Scavenger-Tank 28572 | -6/Archives | Discovered exit to Factory (range 15) 28739 | -6/Archives | Entered Hub_04(d) 28739 | -6/Hub_04(d) | Accompanied by 4 allies 28924 | -6/Hub_04(d) | Discovered exit to Factory (range 4) 29067 | -6/Hub_04(d) | Discovered exit to Factory (range 10) 29078 | -6/Hub_04(d) | Central database locked down 29163 | -6/Hub_04(d) | Network Hub disabled 29234 | -6/Hub_04(d) | Build established: Hauler-Tank 29247 | -6/Hub_04(d) | Entered Factory 29247 | -5/Factory | Evolved 2 slots: Power x1, Utility x1 29278 | -5/Factory | Identified exit to Upper Caves 29612 | -5/Factory | Entered Upper Caves 29659 | -5/Upper Caves | Attracted the attention of an 0b10 checkpoint 29765 | -5/Upper Caves | Build established: Scavenger-Tank 29964 | -5/Upper Caves | Learned location of 1 exit from Factory 30016 | -5/Upper Caves | Learned Research trap positions 30016 | -5/Upper Caves | Learned Armory trap positions 30038 | -5/Upper Caves | Destroyed WX-CZ3(g) 30232 | -5/Upper Caves | Learned location of 1 exit from Factory 30403 | -5/Upper Caves | Discovered new exit (range 9) 30482 | -5/Upper Caves | Entered another Upper Caves area 30562 | -5/Upper Caves | Discovered new exit (range 4) 30623 | -5/Upper Caves | Build established: Hauler-Tank 30702 | -5/Upper Caves | Learned Factory interactive machine intel 30742 | -5/Upper Caves | Attacked by a faux Warlord 30800 | -5/Upper Caves | Destroyed 7 combat bots 30921 | -5/Upper Caves | Discovered new exit (range 10) 31277 | -5/Upper Caves | Entered Zhirov 31277 | -5/Zhirov | Discovered new exit (range 3) 31306 | -5/Zhirov | Met Zhirov 31343 | -5/Zhirov | Found Alien Artifact 31343 | -5/Zhirov | Identified Integrated Reactor 31343 | -5/Zhirov | Installed Integrated Reactor, increased core energy generation (+10) 31380 | -5/Zhirov | Learned location of Quarantine (-3) 31380 | -5/Zhirov | Learned location of Testing (-2) 31380 | -5/Zhirov | Learned location of Command (-1) 31394 | -5/Zhirov | Zhirov requested help retrieving the SGEMP Prototype 31468 | -5/Zhirov | Found Alien Artifact 31487 | -5/Zhirov | Revealed the true nature of CR-A16's Pointy Stick 31530 | -5/Zhirov | Build established: Hauler-Mutant 31603 | -5/Zhirov | Entered Proximity Caves 31611 | -4/Proximity Caves | Spotted B-86 Titan 31636 | -4/Proximity Caves | Destroyed B-86 Titan 31894 | -4/Proximity Caves | Build established: Hauler-Tank 31929 | -4/Proximity Caves | Learned Research trap positions 32133 | -4/Proximity Caves | Discovered new exit (range 15) 32175 | -4/Proximity Caves | Entered Factory 32175 | -4/Factory | Evolved 2 slots: Utility x2 32176 | -4/Factory | Identified exit to Research 32177 | -4/Factory | Loaded intel: 43 interactive machine locations 32366 | -4/Factory | Fabricated Assault Drone Bay (x1) 32380 | -4/Factory | Local fabrication network quarantined 32392 | -4/Factory | Identified Transdimensional Reconstructor 32413 | -4/Factory | Fabricated Assault Drone Bay? 32562 | -4/Factory | Found Imp. Powered Armor 32649 | -4/Factory | Build established: Scavenger-Tank 32688 | -4/Factory | Identified exit to Upper Caves 32983 | -4/Factory | Repaired Centrium Heavy Treads 33253 | -4/Factory | Garrison activated, responded to threat 33362 | -4/Factory | Build established: Hauler-Tank 33425 | -4/Factory | First assault squad dispatched 33469 | -4/Factory | Entered Upper Caves 33487 | -4/Upper Caves | Learned Research stockpile data 34224 | -4/Upper Caves | Discovered new exit (range 20) 34414 | -4/Upper Caves | Spotted B-86 Titan 34466 | -4/Upper Caves | Entered another Upper Caves area 34466 | -4/Upper Caves | Accompanied by 1 ally 34548 | -4/Upper Caves | Central database locked down 34802 | -4/Upper Caves | Encountered a Warlord checkpoint 34804 | -4/Upper Caves | Discovered new exit (range 7) 35001 | -4/Upper Caves | Learned Factory trap positions 35001 | -4/Upper Caves | Learned Factory terminal intel 35001 | -4/Upper Caves | Learned Armory terminal intel 35001 | -4/Upper Caves | Learned Armory garrison access intel 35496 | -4/Upper Caves | Entered Warlord 35556 | -4/Warlord | System corruption cleaned by Quarantine Array 35611 | -4/Warlord | Learned Research stockpile data 35611 | -4/Warlord | Learned Quarantine stockpile data 35613 | -4/Warlord | Learned 4 Armory zone layouts 35613 | -4/Warlord | Learned 4 Armory zone layouts 35613 | -4/Warlord | Learned 4 Research zone layouts 35615 | -4/Warlord | Learned Research repair station intel 35615 | -4/Warlord | Learned Research garrison access intel 35671 | -4/Warlord | Discovered new exit (range 46) 35760 | -4/Warlord | Met Warlord 35765 | -4/Warlord | Warlord's base attacked by MAIN.C 35780 | -4/Warlord | Found Prototype Device 35780 | -4/Warlord | Identified Exp. Focal Shield 35784 | -4/Warlord | Found Prototype Processor 35801 | -4/Warlord | Found Prototype Reactor 35801 | -4/Warlord | Identified Vortex Chain Reactor 35938 | -4/Warlord | Found Prototype Energy Gun 35938 | -4/Warlord | Identified Vortex Shotgun 35942 | -4/Warlord | Found Vortex Shotgun 36115 | -4/Warlord | Warlord forces counterattacked 36150 | -4/Warlord | Opened side exit 36216 | -4/Warlord | Spotted Executioner 36247 | -4/Warlord | Spotted Striker 36271 | -4/Warlord | Spotted Striker 36282 | -4/Warlord | Spotted Striker 36293 | -4/Warlord | Entered Proximity Caves 37032 | -3/Proximity Caves | Spotted B-86 Titan 37178 | -3/Proximity Caves | Destroyed B-86 Titan 37221 | -3/Proximity Caves | Discovered exit to Research (range 4) 37391 | -3/Proximity Caves | Entered Research 37391 | -3/Research | Accompanied by 1 ally 37391 | -3/Research | Evolved 2 slots: Utility x2 37392 | -3/Research | Identified exit to Armory 37393 | -3/Research | Identified exit to Research 37394 | -3/Research | Loaded intel: 96 trap records 37396 | -3/Research | Loaded intel: 4 repair station locations 37397 | -3/Research | Loaded intel: 4 garrison access locations 37414 | -3/Research | Found Hvy. Reflective Plating 37417 | -3/Research | Found Hvy. Reflective Plating 37420 | -3/Research | Found Hvy. Reflective Plating 37591 | -3/Research | Revision forces began assault on 0b10 37608 | -3/Research | Spotted B-86 Titan 37660 | -3/Research | Destroyed B-86 Titan 37704 | -3/Research | Met up with Revision 17++ 37731 | -3/Research | Spotted B-86 Titan 38027 | -3/Research | Fabricated Hyp. Gauss Rifle? 38091 | -3/Research | Research terminal network offline 38101 | -3/Research | Identified Spectral Analyzer 38179 | -3/Research | Found Gamma Bomb Array 38186 | -3/Research | Local fabrication network quarantined 38533 | -3/Research | Spotted Striker 38537 | -3/Research | Destroyed Striker 38854 | -3/Research | Discovered exit to Research (range 31) 38882 | -3/Research | Spotted Striker 38895 | -3/Research | Discovered exit to Research (range 74) 39123 | -3/Research | Repaired Imp. Powered Armor 39226 | -3/Research | Found Prototype Processor 39335 | -3/Research | Build established: Hauler-Mutant 39391 | -3/Research | Spotted Striker 39414 | -3/Research | Destroyed Striker 39596 | -3/Research | Spotted Striker 39609 | -3/Research | Destroyed Striker 39643 | -3/Research | Build established: Hauler-Tank 39675 | -3/Research | Spotted Executioner 39676 | -3/Research | Spotted Striker 39689 | -3/Research | Destroyed Striker 39709 | -3/Research | Destroyed Executioner 40156 | -3/Research | Spotted Striker 40172 | -3/Research | Destroyed Striker 40310 | -3/Research | Spotted Striker 40312 | -3/Research | Spotted Striker 40316 | -3/Research | Entered Armory 40318 | -3/Armory | Loaded intel: 40 trap records 40319 | -3/Armory | Loaded intel: 10 terminal locations 40393 | -3/Armory | Warped through subspace to slip node 40393 | -3/Armory | Discovered new exit (range 1) 40393 | -3/Armory | Identified exit to Lab 40562 | -3/Armory | Found Gamma Bomb Array 40662 | -3/Armory | Found Prototype Launcher 40662 | -3/Armory | Identified Com. Tesla Bomb Launcher 40668 | -3/Armory | Found Com. Tesla Bomb Launcher 40671 | -3/Armory | Found Com. Tesla Bomb Launcher 40673 | -3/Armory | Found Com. Tesla Bomb Launcher 40733 | -3/Armory | Discovered exit to Research (range 3) 40783 | -3/Armory | Fabricated Assault Drone Bay (x1) 40876 | -3/Armory | Fabricated Assault Drone Bay? 40950 | -3/Armory | Fabricated Assault Drone Bay? 41129 | -3/Armory | System corruption reached 10% 41236 | -3/Armory | Fabricated Assault Drone Bay (x1) 41316 | -3/Armory | First assault squad dispatched 41339 | -3/Armory | Entered Lab 41341 | -3/Lab | Discovered exit to Research (range 9) 41561 | -3/Lab | Build established: Hauler-Mutant 42373 | -3/Lab | Hidden lab's door opened automatically 42373 | -3/Lab | Sensor layout match revealed 42374 | -3/Lab | Gained access to the hidden lab's interior 42508 | -3/Lab | Found Alien Artifact 42508 | -3/Lab | Identified Integrated Dissipator 42508 | -3/Lab | Installed Integrated Dissipator, increased core heat dissipation (+20) 42546 | -3/Lab | Found Prototype Protection 42546 | -3/Lab | Identified Exp. Powered Armor 42551 | -3/Lab | Found Prototype Energy Gun 42551 | -3/Lab | Identified Tachyon Dispersion Ray 42557 | -3/Lab | Found Tachyon Dispersion Ray 42569 | -3/Lab | Found Prototype Hackware 42603 | -3/Lab | Found Alien Artifact 42625 | -3/Lab | Found Transdimensional Reconstructor 42656 | -3/Lab | Found Alien Artifact 42701 | -3/Lab | Found Prototype Special Weapon 42848 | -3/Lab | Entered Research 42848 | -2/Research | Accompanied by 6 allies 42848 | -2/Research | Warlord forces began assault on 0b10 42848 | -2/Research | Evolved 2 slots: Utility x2 42849 | -2/Research | Loaded intel: 78 trap records 42958 | -2/Research | Research machine network offline 42987 | -2/Research | Met up with Warlord 43106 | -2/Research | Spotted Striker 43107 | -2/Research | Borebot progress halted 43143 | -2/Research | Build established: Hauler-Tank 43172 | -2/Research | Borebot progress halted 43322 | -2/Research | Found Quantum Capacitor 43351 | -2/Research | Discovered new exit (range 13) 43354 | -2/Research | Discovered new exit (range 23) 43372 | -2/Research | Identified exit to Testing 43602 | -2/Research | Build established: Hauler-Skirmisher 43604 | -2/Research | Identified Exp. Targeting Computer 43616 | -2/Research | Identified Deep Network Scanner 43725 | -2/Research | Identified Gui. Remote Datajack 43838 | -2/Research | Found Prototype Device 43840 | -2/Research | Identified Adv. Kinecellerator 43849 | -2/Research | Found Prototype Slashing Weapon 43850 | -2/Research | Identified Particle Cleaver 43853 | -2/Research | Warlord invited to help at Command 43899 | -2/Research | Found Prototype Processor 43918 | -2/Research | Identified Exp. Core Analyzer 44070 | -2/Research | Spotted Striker 44070 | -2/Research | Spotted Striker 44084 | -2/Research | Destroyed Striker 44098 | -2/Research | Spotted Executioner 44100 | -2/Research | Spotted Executioner 44101 | -2/Research | Allies destroyed Executioner 44103 | -2/Research | Destroyed Executioner 44111 | -2/Research | Found Exp. Core Analyzer 44151 | -2/Research | Spotted Executioner 44151 | -2/Research | Spotted Striker 44168 | -2/Research | Allies destroyed Striker 44219 | -2/Research | Found Prototype Hackware 44233 | -2/Research | Identified Exp. Hacking Suite 44249 | -2/Research | Warlord destroyed during the assault 44254 | -2/Research | Build established: Hauler-Tank 44841 | -2/Research | Entered Testing 44866 | -2/Testing | Found Prototype Processor 44870 | -2/Testing | Found Prototype Device 44873 | -2/Testing | Identified Exp. Signal Interpreter 44878 | -2/Testing | Found Prototype Device 44880 | -2/Testing | Identified Exp. Thermal Shield (x2) 45153 | -2/Testing | Found Prototype Device 45370 | -2/Testing | First assault squad dispatched 45416 | -2/Testing | Found Prototype Hackware 45516 | -2/Testing | Destroyed 7 combat bots 45898 | -2/Testing | Garrison activated, responded to threat 45968 | -2/Testing | Build established: Hauler-Gunner 46055 | -2/Testing | Found Prototype Hackware 46199 | -2/Testing | Identified Core Regenerator 46199 | -2/Testing | Identified Core Reset Matrix 46199 | -2/Testing | Identified Exp. System Shield (x2) 46199 | -2/Testing | Identified Exp. Hardlight Generator 46214 | -2/Testing | Garrison activated, responded to threat 46259 | -2/Testing | Found Prototype Ballistic Gun 46389 | -2/Testing | Discovered new exit (range 11) 46405 | -2/Testing | Identified exit to Access 46407 | -2/Testing | Entered Access 46407 | -1/Access | Evolved 2 slots: Utility x2 46692 | -1/Access | Identified Hyp. Multirail 46869 | -1/Access | Destroyed 11 combat bots 46904 | -1/Access | Identified exit to Command 46904 | -1/Access | Identified exit to Surface 46907 | -1/Access | First assault squad dispatched 47043 | -1/Access | Garrison activated, responded to threat 47171 | -1/Access | Destroyed 9 combat bots 47207 | -1/Access | Spotted B-99 Colossus 47210 | -1/Access | Spotted B-99 Colossus 47231 | -1/Access | Entered Command 47255 | -1/Command | Lost 7 parts (1n4u2w) 47385 | -1/Command | Found Antimissile System 47490 | -1/Command | Repaired Centrium Heavy Treads 47546 | -1/Command | Repaired Helical Railgun? 47558 | -1/Command | Build established: Wizard-Mutant 47580 | -1/Command | Repaired Imp. Utility Shielding 47809 | -1/Command | Spotted M Guard 47809 | -1/Command | Spotted M Guard 47809 | -1/Command | Spotted Combat Programmer 47811 | -1/Command | Spotted Combat Programmer 47817 | -1/Command | Destroyed M Guard 47818 | -1/Command | Destroyed M Guard 47835 | -1/Command | System corruption reached 10% 47838 | -1/Command | Destroyed Combat Programmer 47847 | -1/Command | Destroyed Combat Programmer 47847 | -1/Command | All MAIN.C guards destroyed 47880 | -1/Command | Found Prototype Device 47880 | -1/Command | Identified AEGIS Remote Shield 47896 | -1/Command | Found Prototype Energy Cannon 47907 | -1/Command | Found Prototype Protection 47907 | -1/Command | Identified Hvy. Regenerative Plating 47911 | -1/Command | Found Zero-point Reactor 47933 | -1/Command | Found Hvy. Regenerative Plating 47942 | -1/Command | Found AEGIS Remote Shield 47967 | -1/Command | Found Zero-point Reactor 48141 | -1/Command | Identified Cld. Nova Cannon 48377 | -1/Command | Disengaged cave seal 48377 | -1/Command | Wild derelicts emerged from the dark tunnel 48674 | -1/Command | Build established: Hauler-Mutant 48810 | -1/Command | Met MAIN.C 48817 | -1/Command | 0b10 Conduit disabled 50407 | -1/Command | Spotted B-99 Colossus 50439 | -1/Command | Destroyed B-99 Colossus 50443 | -1/Command | Found Prototype Ballistic Gun 50453 | -1/Command | Found Unknown Protection 50453 | -1/Command | Identified Hvy. Reflective Plating 50458 | -1/Command | Found Hvy. Insulated Plating 50522 | -1/Command | Found Prototype Device 50522 | -1/Command | Identified EM Dispersion Field 50527 | -1/Command | Found Beam Splitter 50535 | -1/Command | Used Core Regenerator, restored core integrity (+400) 50540 | -1/Command | Found Cld. Nova Cannon 50587 | -1/Command | Found Zero-point Reactor 50595 | -1/Command | Found Hvy. Regenerative Plating 50909 | -1/Command | Destroyed MAIN.C Shell 50912 | -1/Command | MAIN.C activated Command garrisons 50968 | -1/Command | Destroyed MAIN.C 50981 | -1/Command | P-80 Master assimilated allied H-88 Terminator 51071 | -1/Command | Destroyed 32 combat bots 51121 | -1/Command | System corruption reached 30% 51180 | -1/Command | Destroyed 13 combat bots 51190 | -1/Command | Lost 13 parts (2p3n6u2w) 51663 | -1/Command | Build established: Scavenger-Mutant 55338 | -1/Command | Found Gamma Bomb Array 55341 | -1/Command | Found Gamma Bomb Array 55445 | -1/Command | Identified Multirail 56634 | -1/Command | Build established: Hauler-Mutant 59209 | -1/Command | Found Prototype Device 59211 | -1/Command | Identified Exp. ECM Suite 59267 | -1/Command | Found Prototype Processor 59272 | -1/Command | Found Prototype Processor 59276 | -1/Command | Identified Exp. Core Analyzer (x2) 59384 | -1/Command | Found Multirail 59506 | -1/Command | Spotted B-99 Colossus 59550 | -1/Command | Destroyed B-99 Colossus 59863 | -1/Command | Build established: Hauler-Gunner 62359 | -1/Command | Build established: Hauler-Mutant 62548 | -1/Command | Found Adv. Particle Accelerator 62558 | -1/Command | Found Vortex Chain Reactor 64072 | -1/Command | Warped through subspace to slip node 64072 | -1/Command | Discovered new exit (range 5) 64089 | -1/Command | Entered Access_0 64091 | -1/Access_0 | Met Architect 64097 | -1/Access_0 | Architect warped through subspace 64125 | -1/Access_0 | Destroyed A8 64128 | -1/Access_0 | Used Core Reset Matrix 64132 | -1/Access_0 | Sensed 4 artifacts in vicinity 64172 | -1/Access_0 | Architect warped through subspace 64243 | -1/Access_0 | Architect warped through subspace 64304 | -1/Access_0 | Architect warped through subspace 64365 | -1/Access_0 | Architect warped through subspace 64384 | -1/Access_0 | Build established: Hauler-Gunner 64425 | -1/Access_0 | Architect warped through subspace 64490 | -1/Access_0 | Architect warped through subspace 64501 | -1/Access_0 | Found Prototype Device 64501 | -1/Access_0 | Identified Exp. Thermal Shield 64510 | -1/Access_0 | Found Prototype Device 64510 | -1/Access_0 | Identified Exp. Force Field 64561 | -1/Access_0 | Architect warped through subspace 64592 | -1/Access_0 | Subspace Access Node disabled 64614 | -1/Access_0 | Architect warped through subspace 64670 | -1/Access_0 | Architect warped through subspace 64727 | -1/Access_0 | Architect warped through subspace 64770 | -1/Access_0 | Architect warped through subspace 64795 | -1/Access_0 | A6 warped into view 64802 | -1/Access_0 | Destroyed A6 64810 | -1/Access_0 | Architect warped through subspace 64822 | -1/Access_0 | Found Prototype Device 64822 | -1/Access_0 | Identified Desublimator 64826 | -1/Access_0 | Found Prototype Device 64826 | -1/Access_0 | Identified Exp. Phase Shifter 64833 | -1/Access_0 | Found Prototype Processor 64834 | -1/Access_0 | Identified Exp. Targeting Computer 64856 | -1/Access_0 | Architect warped through subspace 64887 | -1/Access_0 | Subspace Access Node disabled 64902 | -1/Access_0 | Architect warped through subspace 64951 | -1/Access_0 | Architect warped through subspace 64989 | -1/Access_0 | Architect warped through subspace 65004 | -1/Access_0 | Found Desublimator 65006 | -1/Access_0 | Found Prototype Device 65006 | -1/Access_0 | Identified Exp. Weapon Cycler 65012 | -1/Access_0 | Found Exp. Weapon Cycler 65027 | -1/Access_0 | Architect warped through subspace 65060 | -1/Access_0 | Architect warped through subspace 65101 | -1/Access_0 | Architect warped through subspace 65130 | -1/Access_0 | Architect warped through subspace 65151 | -1/Access_0 | Architect warped through subspace 65172 | -1/Access_0 | Core integrity fell below 50% 65173 | -1/Access_0 | Architect warped through subspace 65216 | -1/Access_0 | Architect warped through subspace 65226 | -1/Access_0 | Found Exp. Targeting Computer 65236 | -1/Access_0 | Found Exp. Phase Shifter 65257 | -1/Access_0 | Architect warped through subspace 65288 | -1/Access_0 | A5 warped into view 65294 | -1/Access_0 | Subspace Access Node disabled 65325 | -1/Access_0 | Architect warped through subspace 65343 | -1/Access_0 | Architect warped through subspace 65348 | -1/Access_0 | Lost 4 parts (1p2u1w) 65361 | -1/Access_0 | Destroyed A5 65370 | -1/Access_0 | Architect warped through subspace 65419 | -1/Access_0 | Emitted hypermatrix ping 65424 | -1/Access_0 | Assembled emerged from beneath the floor 65429 | -1/Access_0 | Architect warped through subspace 65447 | -1/Access_0 | Architect warped through subspace 65476 | -1/Access_0 | Subspace Access Node disabled 65529 | -1/Access_0 | Lost 3 parts (1p1u1w) 65569 | -1/Access_0 | Found Core Expander 65569 | -1/Access_0 | Installed Core Expander, added new Propulsion slot 65733 | -1/Access_0 | Found Prototype Device 65733 | -1/Access_0 | Identified EM Disruption Field 65739 | -1/Access_0 | Found Prototype Processor 65739 | -1/Access_0 | Identified Exp. Target Analyzer 65806 | -1/Access_0 | Build established: Hauler-Mutant 65878 | -1/Access_0 | Found Prototype Device 65878 | -1/Access_0 | Identified Exp. Actuator Array 65886 | -1/Access_0 | Found Prototype Device 65886 | -1/Access_0 | Identified Exp. Shock Absorption System 66265 | -1/Access_0 | A4 warped into view 66298 | -1/Access_0 | Destroyed A4 66332 | -1/Access_0 | Found Hpw. Transdimensional Reconstructor 66385 | -1/Access_0 | Destroyed A2 66398 | -1/Access_0 | Extracted Singularity Gate Test 138-C access codes from A2's data core 66443 | -1/Access_0 | Build established: Hauler-Gunner 66500 | -1/Access_0 | Singularity Gate disabled 66729 | -1/Access_0 | Destroyed Architect 66775 | -1/Access_0 | Found Sigix Corpse 67704 | -1/Access_0 | A3 warped into view 67723 | -1/Access_0 | Destroyed A3 67839 | -1/Access_0 | Warped through subspace to slip node 67839 | -1/Access_0 | Discovered exit to Surface (range 8) 67852 | *** | Heading to fleet! Last Messages --------------- 67721_ HV Slug penetrates A3. 67721_ A3 suffers critical hit. 67721_ Destroyed Prototype Hover Unit. 67721_ HV Slug penetrates A3. 67721_ A3 suffers critical hit. 67721_ HV Slug penetrates A3. 67721_ HV Slug penetrates Wall. 67721_ Slug penetrates A3. 67723_ Penetrated by HV Slug. 67723_ HV Slug penetrates A3. 67723_ HV Slug penetrates Wall. 67723_ A3: "How even..." 67723_ A3 destroyed. 67730_ Ended siege mode. 67757_ &J, 2L<,MUC&L%:UK:Y H2#BAPYA8B5 U 67778_ System corrupted: Matter fused (-6). 67800_ Acquired 2 matter. 67839_ Warped through subspace, drawn to slip node. 67839_ EXIT=FOUND: SURFACE 67849_ System corrupted: Matter fused (-10). Map ----- +----------------------------------------------------+ | | | | | | | | | | | | | | | | | | | | | | | | | | | | | | | | | ?????????????????????????????????????????????????? | | ?????????????????????????????????????????????????? | | ?????????????????????????????????????????????????? | | ?????????????????????????????????????????????????? | | ?????????????????????????????????????????????????? | | ?????????????????????????????????????????????????? | | ????????????????????????###??????????????????????? | | ???????????????????????## ##?????????????????????? | | ???????????????????????# #?????????????????????? | | ???????????????????????# @ #?????????????????????? | | ??????????????????????## #?????????????????????? | | ??????????????????????# #?????????????????????? | | ??????????????????????# ##?????????????????????? | | ??????????????????????## #?????????????????????? | | ??????????????????????# #?????????????????????? | | ??????????????????????# ##?????????????????????? | | ??????????????????????# < #?????????????????????? | | ??????????????????????# ##?????????????????????? | | ??????????????????????## #??????????????????????? | | ???????????????????????####??????????????????????? | | ?????????????????????????????????????????????????? | | ?????????????????????????????????????????????????? | | ?????????????????????????????????????????????????? | | ?????????????????????????????????????????????????? | | ?????????????????????????????????????????????????? | | ?????????????????????????????????????????????????? | | ?????????????????????????????????????????????????? | | ?????????????????????????????????????????????????? | | ?????????????????????????????????????????????????? | | ?????????????????????????????????????????????????? | | ?????????????????????????????????????????????????? | | ?????????????????????????????????????????????????? | | ?????????????????????????????????????????????????? | | ?????????????????????????????????????????????????? | +----------------------------------------------------+ Best States ------------- Heat Dissipation 172 Coolant Potential 120 Energy Generation 115 Energy Capacity 2590 Matter Stores 1290 Matter Capacity 1300 Sight Range 16 Robot Scan Range 20 Terrain Scan Range 16 Terrain Scan Density 60 Jamming Range 16 Power Amplification 40 Armor Coverage 2400 Resistance: KI 30 Resistance: TH 75 Resistance: EM 75 Core Shielding 30 Utility Shielding 66 Weapon Shielding 66 Point Defense Rating 240 Thermal Conversion 90 Weapon Cycling 30 Phase Shifting 20 Evasion (%) 60 Targeting Accuracy 24 Target Analysis 12 Core Analysis 15 Armor Integrity Analysis 66 Recoil Reduction 5 Matter Filtering 50 Kinecelleration 50 Force Boost 4 Salvage Targeting 4 Offensive Hacking 55 Defensive Hacking 42 Item Schematics ----------------- None Robot Schematics ------------------ None Fabricated ------------ Hyp. Gauss Rifle | x2 | -7/Factory Assault Drone Bay | x1 | -4/Factory Assault Drone Bay | x1 | -4/Factory Hyp. Gauss Rifle | x2 | -3/Research Assault Drone Bay | x1 | -3/Armory Assault Drone Bay | x1 | -3/Armory Assault Drone Bay | x1 | -3/Armory Assault Drone Bay | x1 | -3/Armory Alien Tech Used ----------------- Integrated Reactor Transdimensional Reconstructor Integrated Dissipator Core Regenerator Core Reset Matrix Core Expander High-powered Transdimensional Reconstructor Achievements -------------- None Challenges ------------ None Game ------ Seed MobileContainmentCannon Manual? 0 Play Time 07:20:51 Cumulative 1717.0 hours Start 2020.10.21 @ 02:40:36 End 2020.10.22 @ 04:23:30 Sessions 11 Manual Loads 0 Difficulty Rogue Special Mode None Game No. 2494 Rogue 2487 Adventurer 0 Explorer 7 Win Type 2 Total 165 Types 41/23/64/3/3/5/23/2/1 Lore% 99 Gallery% 99 Achievement% 100 Wizard Run 0 Options --------- ASCII 0 Keyboard 1 Movement Numpad Keybinds 1 Fullscreen 1 Font 18/SmallcapsGlow Map View 76x50 Tactical HUD 1 Map Filters NONE Filters NONE Steam 1 RUN: ff885af4-bf7e-4150-8960-85f6a5b9657b